Cogmind - Beta 16 @@@ ROGUE MODE // 2025.12.22 @ 18:57:07 Player: C0-2MO Result: Destroyed by Hotshot with Precision Phase Gun Performance ------------- Evolutions (8) 4000 Regions Visited (27) 5400 Robots Destroyed (138) 690 Value Destroyed (5234) 5234 Prototype IDs (179) 3580 Alien Tech Used (5) 1000 Bonus (8750) 8750 TOTAL SCORE: 28654 Bonus ------- High Alert Combat Kills 103 Follower Combat Kills 1076 Entered Garrisons 200 Used RIF Installer 500 Delivered SUBCON Basin 2000 Registered with UFD 300 Met Optimus in HQ 500 Met Data Miner 300 Met Warlord at Base 500 MAIN.C Attacked Warlord 500 Warlord Defense Kills 1292 Scanned by Researcher 500 Met Optimus at Protoforge 1000 Friendly Fire -21 Cogmind --------- Core Integrity 0/1450 Matter 256/300 Energy 169/170 System Corruption 2% Temperature Cool (12) Movement Flying (30) Location -2/Protoforge Parts ------- > --- POWER (2) -------- Light Antimatter Reactor > --- PROPULSION (6) --- Nuclear Pulse Array Nuclear Pulse Array Cooled Q-thruster > --- UTILITY (13) ----- Medium Storage Unit Enhanced Optical Array Advanced Signal Interpreter Graphene Brace System Mapper System Shield Advanced System Shield > --- WEAPON (2) ------- (None) > --- INVENTORY (10) --- Relay Coupler [Proto] (10) Relay Coupler [Proto] (10) Relay Coupler [Proto] (10) Relay Coupler [Proto] (10) Hypervelocity EM Gauss Rifle Peak State ------------ > --- POWER ------------ Light Antimatter Reactor > --- PROPULSION ------- Nuclear Pulse Array Nuclear Pulse Array Cooled Q-thruster Experimental Surge Thruster > --- UTILITY ---------- Medium Storage Unit Plexus Tether Enhanced Optical Array Advanced Signal Interpreter Experimental Reaction Control System Makeshift Core Shielding Centrium Medium Armor Plating Graphene Brace Hacking Suite Improved Hacking Suite System Mapper System Shield Advanced System Shield > --- WEAPON ----------- Concept XC Strikerail Kinetic Spear > --- INVENTORY -------- Q-thruster Experimental ECM Suite Relay Coupler [Proto] Relay Coupler [Proto] Relay Coupler [Proto] Relay Coupler [Proto] Dimensional Node Initializer Supercharged TR Hypervelocity EM Gauss Rifle [Rating: 157] Favorites ----------- Power Micro Nuclear Core Engine Subdweller Power Source Power Core Micro Nuclear Core Reactor Light Antimatter Reactor Propulsion Nuclear Pulse Thruster Treads Light Treads Wheel Compact Wheel Hover Unit Antigrav System Flight Unit Nuclear Pulse Thruster Utility Hacking Suite Device Advanced Sensor Array Storage Medium Storage Unit Processor Advanced Signal Interpreter Hackware Hacking Suite Protection Improved Propulsion Shielding Weapon Subdweller Beam Cannon Energy Gun EM Pulse Gun Energy Cannon Subdweller Beam Cannon Ballistic Gun Subdweller Machine Gun Ballistic Cannon Battle Cannon Launcher Mini Grenade Launcher Special Weapon RU-N14's Throwing Claymores v3 Impact Weapon Makeshift Hammer Slashing Weapon Makeshift Sword Piercing Weapon Kinetic Spear Special Melee Weapon Improved Datajack Build | -11 -10 -10 -8 -8 -6 -6 -6 -6 -5 -5 -5 -5 -5 -5 -5 -4 -4 -4 -4 -4 -3 -3 -3 -3 -2 -2 -2 ------- Run | Yrd Mat Sub Rec Scr Fac Low Low Dat Pro Fac Was Fac Upp Upp War Pro Fac Upp Upp Zhi Pro Res Tes Gar Res Qua Frg Slots Evolved 16 | . . . . . 8 . . . . 2 . . . . . . 2 . . . . 2 . . 2 . . Power 1 | . . . . . . . . . . . . . . . . . 1 . . . . . . . . . . Propulsion 4 | . . . . . 4 . . . . . . . . . . . . . . . . . . . . . . Utility 11 | . . . . . 4 . . . . 2 . . . . . . 1 . . . . 2 . . 2 . . Weapon . | . . . . . . . . . . . . . . . . . . . . . . . . . . . . Parts Attached 197 | 5 9 18 2 7 23 1 1 . 1 6 . 24 . . 11 . 11 14 1 4 2 7 7 4 16 5 18 Power 27 | 1 1 1 . 1 3 . . . . 1 . 4 . . . . 2 4 . 1 . 1 . 2 2 1 2 Engine 8 | 1 1 1 . 1 . . . . . 1 . 1 . . . . . 1 . . . 1 . . . . . Core 8 | . . . . . 2 . . . . . . 3 . . . . 1 2 . . . . . . . . . Reactor 11 | . . . . . 1 . . . . . . . . . . . 1 1 . 1 . . . 2 2 1 2 Propulsion 59 | 2 2 6 2 2 10 . . . . 2 . 2 . . 1 . 3 5 . . 1 2 1 2 12 2 2 Treads 5 | 2 2 1 . . . . . . . . . . . . . . . . . . . . . . . . . Leg . | . . . . . . . . . . . . . . . . . . . . . . . . . . . . Wheel 7 | . . 5 2 . . . . . . . . . . . . . . . . . . . . . . . . Hover 2 | . . . . . . . . . . . . 1 . . . . . 1 . . . . . . . . . Flight 45 | . . . . 2 10 . . . . 2 . 1 . . 1 . 3 4 . . 1 2 1 2 12 2 2 Utility 79 | . 3 4 . 3 10 . 1 . . 3 . 16 . . 5 . 5 3 1 3 . 3 3 . 2 2 12 Device 30 | . . . . 1 3 . 1 . . . . 9 . . 4 . 1 2 . . . . . . 2 1 6 Storage 8 | . 1 1 . . 1 . . . . 1 . . . . . . 1 . . 1 . 1 1 . . . . Processor 13 | . . 1 . . 2 . . . . . . 2 . . . . . . 1 . . 2 1 . . 1 3 Hackware 18 | . . . . 1 4 . . . . 2 . 5 . . . . 2 1 . 1 . . 1 . . . 1 Protection 10 | . 2 2 . 1 . . . . . . . . . . 1 . 1 . . 1 . . . . . . 2 Artifact . | . . . . . . . . . . . . . . . . . . . . . . . . . . . . Weapon 32 | 2 3 7 . 1 . 1 . . 1 . . 2 . . 5 . 1 2 . . 1 1 3 . . . 2 Energy Gun 5 | 1 2 1 . . . . . . . . . . . . . . . . . . . . 1 . . . . Energy Cannon 5 | . . 2 . . . . . . . . . . . . 1 . . 1 . . . . 1 . . . . Ballistic Gun 5 | 1 . 2 . . . . . . . . . . . . . . . . . . . . . . . . 2 Ballistic Cannon 4 | . . 1 . . . . . . . . . . . . 1 . . . . . 1 1 . . . . . Launcher 1 | . . . . 1 . . . . . . . . . . . . . . . . . . . . . . . Special Weapon 3 | . . . . . . . . . . . . . . . 3 . . . . . . . . . . . . Impact Weapon 2 | . 1 . . . . . . . . . . . . . . . . 1 . . . . . . . . . Slashing Weapon 2 | . . 1 . . . . . . . . . 1 . . . . . . . . . . . . . . . Piercing Weapon 1 | . . . . . . . . . . . . . . . . . . . . . . . 1 . . . . Special Melee Weapon 4 | . . . . . . 1 . . 1 . . 1 . . . . 1 . . . . . . . . . . Unidentified Prototypes 41 | . . . . . 2 . . . . . . 4 . . 6 . 1 . . 4 . 2 5 . 3 3 11 Corrupted Parts 1 | . . . . . . . . . . . . . . . . . . 1 . . . . . . . . . System Corruption 5 | . . . . . . . . . . . . . . . . . . 5 . . . . . . . . . Parts Lost 65 | . . 3 . . 3 . . . 3 3 . 3 . . . . 14 3 . . 2 2 1 4 2 10 12 Power 9 | . . 1 . . . . . . . 1 . . . . . . 2 . . . 1 . . 2 . 2 . Propulsion 26 | . . 1 . . 1 . . . 1 1 . 1 . . . . 6 2 . . 1 2 . 1 2 3 4 Utility 19 | . . 1 . . 1 . . . 2 1 . . . . . . 4 . . . . . . 1 . 3 6 Weapon 11 | . . . . . 1 . . . . . . 2 . . . . 2 1 . . . . 1 . . 2 2 Highest Loss Streak 14 | . . 1 . . 2 . . . 3 3 . 1 . . . . 14 2 . . 1 2 1 2 1 7 5 To Critical Strikes . | . . . . . . . . . . . . . . . . . . . . . . . . . . . . Average Backups 8 | 1 4 6 18 14 7 10 10 10 10 9 9 8 7 7 8 9 7 4 4 5 4 4 5 7 10 9 7 Power . | . . . 2 1 . 1 . . . . . 1 1 1 1 2 . . 1 1 1 . . . . . . Propulsion 1 | . . . 4 1 . 2 2 2 2 2 2 2 2 2 2 2 1 . . . . . . 1 2 1 . Utility 3 | . . 1 4 7 5 6 6 7 7 5 6 3 2 2 3 3 1 1 1 1 1 . . 1 5 4 4 Weapon 2 | . 2 4 8 3 . . . . . . . . 1 1 1 2 2 1 2 2 1 2 3 3 2 1 1 Tool/Special . | . . . . . . . . . . . . . . . . . . . . . . . . . . . . Unused Backups 31 | . 1 6 . 12 1 . . . . . . 1 . . . . . 1 1 1 . . 1 . . 2 4 Power 2 | . . . . 1 . . . . . . . . . . . . . . . . . . 1 . . . . Propulsion . | . . . . . . . . . . . . . . . . . . . . . . . . . . . . Utility 17 | . . 3 . 5 1 . . . . . . 1 . . . . . 1 . 1 . . . . . 1 4 Weapon 10 | . 1 3 . 6 . . . . . . . . . . . . . . . . . . . . . . . Tool/Special 2 | . . . . . . . . . . . . . . . . . . . 1 . . . . . . 1 . Average Slot Usage (%) 82 | . 86 73 81 73 94 97 100 100 95 76 70 80 88 88 92 94 79 68 89 88 90 92 86 93 85 83 70 Engine 3 | . 10 6 9 9 . . . . . 1 5 . . . . . . . 5 5 4 2 . . . . . Core 2 | . . . . . 9 11 11 11 8 2 . 4 5 5 5 5 7 1 . . . . . . . . . Treads 4 | . 28 14 . . . . . . . . . . . . . . . . . . . . . . . . . Wheel 5 | . . 6 27 25 . . . . . . . . . . . . . . . . . . . . . . . Flight 15 | . . . . 1 32 35 35 35 34 26 23 22 29 29 29 29 23 18 26 26 27 25 23 28 25 21 15 Device 5 | . . . . . 7 11 11 11 11 11 11 13 11 11 6 5 6 2 9 4 5 4 4 4 7 10 7 Storage 4 | . 9 4 9 8 3 5 5 5 5 5 5 5 5 5 5 5 4 . . . . . 3 4 4 4 4 Processor 9 | . . 7 9 9 15 11 11 11 8 5 5 7 11 11 11 11 10 10 10 15 15 22 19 19 17 16 11 Hackware 8 | . . . . . 10 5 5 5 5 8 5 12 17 17 17 17 15 24 26 26 26 23 23 22 17 17 17 Protection 3 | . 9 8 . . 1 5 5 5 4 . . . . . 3 5 3 . . . . . . . . . 2 Energy Gun 2 | . 22 6 . . . . . . . . . . . . . . . . . . . . . . . . . Energy Cannon 3 | . . 8 17 9 . . . . . . . . . . . . . 1 . . . . . . . . . Ballistic Cannon 2 | . . 5 9 8 . . . . . . . . . . 3 5 . 1 . . 1 1 . 1 . . . Slashing Weapon 2 | . . 1 . . 5 5 5 5 5 5 5 5 5 5 5 5 4 . . . . . . . . . . Peak Build Rating 157 | 5 9 51 51 33 87 84 88 88 88 70 66 91 76 76 93 90 103 85 87 89 100 122 128 131 137 144 157 Average Rating 62 | 3 6 24 47 28 80 82 86 88 73 66 66 82 76 76 87 90 87 70 85 87 90 111 110 123 124 127 122 On Entrance 73 | . 4 9 51 30 33 80 84 88 88 58 66 66 76 76 76 90 90 50 85 87 89 87 104 119 120 137 110 Avg Prop Armor Cover (%) 8 | 32 29 1 3 . 7 4 4 . . 11 12 2 . . . . 7 10 . . . . . . . . . Naked Turns . | . . . . . . . . . . . . . . . . . . . . . . . . . . . . Heaviest Build 224 | 3 32 224 224 224 29 30 30 29 29 22 19 37 24 24 34 34 51 25 24 24 36 30 30 45 35 46 42 Greatest Support 56 | 3 40 56 56 48 46 43 43 40 40 44 45 46 42 42 42 42 42 29 25 25 34 35 42 44 50 50 49 Greatest Overweight (x) 13 | . . 13 6 4 . . . . . . . 1 . . . . 1 . . . 1 . . 1 . . . Average Overweight (x) . | . . . 4 3 . . . . . . . . . . . . . . . . . . . . . . . Largest Inventory Capacity 35 | 5 15 35 35 35 10 10 10 10 10 10 10 10 10 10 10 10 15 5 5 5 5 5 10 10 10 10 10 Average Capacity 13 | 5 11 11 35 33 8 10 10 10 10 10 10 10 10 10 10 10 11 5 5 5 5 5 9 10 10 10 10 Most Carried 35 | 2 10 34 35 22 10 10 10 10 10 10 9 10 8 8 10 10 10 5 5 5 5 5 8 10 10 10 10 Average Carried 10 | 1 4 8 34 15 7 10 10 10 10 9 9 9 8 8 9 10 7 4 4 4 4 4 6 8 9 9 7 Final Capacity 35 | 5 15 35 35 5 10 10 10 10 10 10 10 10 10 10 10 10 5 5 5 5 5 5 10 10 10 10 10 Final Carried 34 | 2 10 34 21 5 10 10 10 10 10 9 9 8 8 8 10 10 5 5 5 5 5 5 8 10 10 10 5 Class Distribution -------------------- 24% | Hacker-Sprinter 14% | Mutant 10% | Hauler-Mutant 9% | Wizard-Sprinter 8% | Hacker-Scout 8% | Sprinter 8% | Hauler-Gunner 5% | Subdweller-Mutant 3% | Subdweller-Tank 3% | Ninja Dominant Class ---------------- Mutant | -10/Materials Mutant | -10/Subcaves Hauler-Gunner | -8/Recycling Hauler-Mutant | -8/Scraptown Hacker-Scout | -6/Factory Sprinter | -6/Lower Caves Sprinter | -6/Lower Caves Sprinter | -6/Data Miner Sprinter | -5/Proximity Caves Hacker-Sprinter | -5/Factory Scientist-Sprinter | -5/Waste Hacker-Sprinter | -5/Factory Hacker-Sprinter | -5/Upper Caves Hacker-Sprinter | -5/Upper Caves Hacker-Sprinter | -5/Warlord Hacker-Sprinter | -4/Proximity Caves Hacker-Sprinter | -4/Factory Wizard-Sprinter | -4/Upper Caves Wizard-Sprinter | -4/Upper Caves Wizard-Sprinter | -4/Zhirov Wizard-Sprinter | -3/Proximity Caves Wizard-Sprinter | -3/Research Wizard-Sprinter | -3/Testing Wizard-Sprinter | -3/Garrison Hacker-Scout | -2/Research Hacker-Sprinter | -2/Quarantine Hacker-Sprinter | -2/Protoforge Resources | -11 -10 -10 -8 -8 -6 -6 -6 -6 -5 -5 -5 -5 -5 -5 -5 -4 -4 -4 -4 -4 -3 -3 -3 -3 -2 -2 -2 ----------- Run | Yrd Mat Sub Rec Scr Fac Low Low Dat Pro Fac Was Fac Upp Upp War Pro Fac Upp Upp Zhi Pro Res Tes Gar Res Qua Frg Matter Collected 4864 | 255 89 585 45 . 452 20 38 . 15 61 . 397 35 . 342 295 130 574 27 99 233 . 210 324 210 97 331 Remotely . | . . . . . . . . . . . . . . . . . . . . . . . . . . . . Salvage Created 6270 | 100 256 752 167 . 586 21 80 . 20 181 . 556 . . 541 62 341 514 . 278 387 67 215 423 267 274 182 Parts 274 | 3 20 44 10 . 22 4 3 . 4 9 . 27 . . 31 . 9 23 . 1 12 2 1 24 13 3 9 Haulers Intercepted 6 | . 1 . . . 1 . . . . 1 . 2 . . . . 1 . . . . . . . . . . Recyclers Shooed 3 | . 1 . . . 1 . . . . . . . . . . . . . . . . . 1 . . . . Parts Field Recycled . | . . . . . . . . . . . . . . . . . . . . . . . . . . . . Retrieved Matter . | . . . . . . . . . . . . . . . . . . . . . . . . . . . . Parts Self-Destructed 67 | . . 21 . . . 3 7 . 3 . . . . 5 . . . 16 . 1 11 . . . . . . Prevented 4 | . . . . . . . . . . . . . . . . . . 4 . . . . . . . . . Parts Restored . | . . . . . . . . . . . . . . . . . . . . . . . . . . . . Kills | -11 -10 -10 -8 -8 -6 -6 -6 -6 -5 -5 -5 -5 -5 -5 -5 -4 -4 -4 -4 -4 -3 -3 -3 -3 -2 -2 -2 ------- Run | Yrd Mat Sub Rec Scr Fac Low Low Dat Pro Fac Was Fac Upp Upp War Pro Fac Upp Upp Zhi Pro Res Tes Gar Res Qua Frg Combat Hostiles Destroyed 84 | . 9 19 1 . 1 . 1 . . . . 4 . . 10 . 5 13 . . 5 1 . 9 1 1 4 Melee 9 | . . . . . 1 . 1 . . . . 4 . . . . 1 . . . 1 . . . . . 1 Guns 18 | . 8 7 . . . . . . . . . . . . . . . . . . . . . . . . 3 Cannons 47 | . . 10 1 . . . . . . . . . . . 9 . 2 11 . . 4 1 . 9 . . . AOE 6 | . 1 . . . . . . . . . . . . . . . 2 2 . . . . . . . 1 . Classes Destroyed 23 | 1 3 2 1 . 1 1 1 . . 2 . 4 . . 3 . . . . . . . 1 1 . . 2 Worker 5 | . . . . . . . . . . 3 . . . . . . 2 . . . . . . . . . . Builder 5 | . . . . . . . . . . . . 2 . . . . . . . . . . . . 2 1 . Tunneler 1 | . . . . . . . . . . 1 . . . . . . . . . . . . . . . . . Hauler 6 | . 1 . . . 1 . . . . 1 . 2 . . . . 1 . . . . . . . . . . Recycler 9 | 1 1 . 2 . 2 . . . . . . . . . . . . . . . . . 1 . 1 1 . Minesweeper 3 | . . . . . . 1 . . 1 . . . . . . . . 1 . . . . . . . . . Mechanic 3 | . . . . . . . . . . . . 1 . . . . 1 . . . . . . . 1 . . Operator 7 | . 1 . . . 2 . . . . . . 1 . . . . . . . . . . . . 1 1 1 Drone 1 | . . . . . . . . . . . . . . . . . . . . . . . . . . . 1 Turret 2 | . . 2 . . . . . . . . . . . . . . . . . . . . . . . . . Watcher 12 | . . . . . 5 . . . . 1 . 2 . . . . . . . . 2 . 1 . . 1 . Swarmer 24 | . 9 4 . . 1 . . . . . . 1 . . . . . 7 . . 1 . . . 1 . . Cutter 1 | . . . . . . . . . . . . . . . . . . . . . . . . 1 . . . Grunt 16 | . . . . . . . 1 . . . . . . . 2 . 1 3 . . 4 . . 5 . . . Brawler 2 | . . . . . . . . . . . . . . . 1 . . 1 . . . . . . . . . Protector 4 | . . . . . . . . . . . . . . . 4 . . . . . . . . . . . . Researcher 1 | . . . . . . . . . . . . . . . . . . . . . . . 1 . . . . Sentry 3 | . . . 1 . . . . . . . . . . . . . . . . . . . . 2 . . . Specialist 2 | . . . . . . . . . . . . . . . . . . . . . . . . . . . 2 Hunter 2 | . . . . . . . . . . . . 1 . . . . 1 . . . . . . . . . . Programmer 12 | . . . . . . . . . . . . 2 . . 2 . 3 2 . . . 1 . 1 . 1 . Decapitator 1 | . . . . . . . . . . . . . . . . . . . . . . . . . . . 1 Striker 1 | . . . . . . . . . . . . . . . 1 . . . . . . . . . . . . Subdweller 15 | . . 15 . . . . . . . . . . . . . . . . . . . . . . . . . Best Kill Streak 6 | 1 6 6 1 . 3 1 1 . 1 4 . 2 . . 4 . 3 5 . . 2 1 1 2 3 1 1 Combat Bots Only 6 | . 6 6 1 . 1 . 1 . . . . 2 . . 4 . 2 5 . . 1 1 . 2 1 1 1 Max Kills in Single Turn 3 | 1 1 1 1 . 1 1 1 . 1 1 . 1 . . 1 . 3 1 . . 1 1 1 1 1 2 1 Gunslinging . | . . . . . . . . . . . . . . . . . . . . . . . . . . . . Exploded 1 | . 1 . . . . . . . . . . . . . . . 1 1 . . . . . . . 1 . Melee 1 | . . . . . 1 . 1 . . . . 1 . . . . 1 . . . 1 . . . . . 1 Uniques/NPCs Destroyed . | . . . . . . . . . . . . . . . . . . . . . . . . . . . . Combat | -11 -10 -10 -8 -8 -6 -6 -6 -6 -5 -5 -5 -5 -5 -5 -5 -4 -4 -4 -4 -4 -3 -3 -3 -3 -2 -2 -2 -------- Run | Yrd Mat Sub Rec Scr Fac Low Low Dat Pro Fac Was Fac Upp Upp War Pro Fac Upp Upp Zhi Pro Res Tes Gar Res Qua Frg Hostile Shots Fired 936 | . 26 89 4 . 94 . 15 . 28 12 . 86 2 . 37 15 192 60 . . 11 16 . 50 20 100 79 Missed 428 | . 4 35 1 . 41 . 10 . 18 6 . 44 1 . 15 11 101 18 . . 7 7 . 24 11 34 40 Hits 508 | . 22 54 3 . 53 . 5 . 10 6 . 42 1 . 22 4 91 42 . . 4 9 . 26 9 66 39 Melee 7 | . . . . . 1 . . . . . . . . . . . . . . . . . . 1 . . 5 Projectile 501 | . 22 54 3 . 52 . 5 . 10 6 . 42 1 . 22 4 91 42 . . 4 9 . 25 9 66 34 AOE 5 | . . . . . . . . . . . . 1 . . . . . . . . . . . 1 . . 3 Critical Strikes 31 | . . 2 . . 2 . . . . . . 2 . . 2 . 3 1 . . . . . . . 9 10 Actively Blocked 20 | . . . . . . . . . . . . . . . . . 1 . . . . . . . . 9 10 Part Disruptions 1 | . . . . . . . . . . . . . . . . . . . . . . . . 1 . . . Damage Taken 11237 | . 219 959 43 . 855 . 61 . 158 236 . 1168 25 . 463 121 1694 684 . . 95 233 . 642 212 1627 1742 Core 3348 | . 63 70 12 . 257 . 31 . 19 40 . 258 . . 92 18 673 242 . . 27 79 . 158 47 830 432 Absorbed by Shields 22 | . . . . . . . . . . . . 22 . . . . . . . . . . . . . . . Redirected to Shielding 389 | . 1 . . . 130 . 3 . 40 . . . . . 51 42 104 . . . . . . . . . 18 Regen/Repaired (Parts) 845 | . . . . 102 119 . . . . 46 . 34 . . 212 . 281 . . . . . . . . 51 . Core Remaining (%) 60 | 100 . . . 42 . . . . 63 . . . . . . 59 . . . . 18 . . 81 . . . Volleys Fired 319 | 5 33 55 3 . . . . . . . . . . . 67 . 6 52 . . 17 5 . 35 6 4 31 Largest 3 | 2 2 3 3 . . . . . . . . . . . 1 . 1 1 . . 1 1 . 1 1 1 1 Hottest 193 | 70 80 193 193 . . . . . . . . . . . 51 . 51 85 . . 56 56 . 100 40 56 32 Shots Fired 424 | 10 64 119 9 . . . . . . . . . . . 66 . 6 52 . . 17 5 . 35 6 4 31 Gun 160 | 10 64 49 . . . . . . . . . . . . . . . . . . . . . . 6 . 31 Cannon 259 | . . 70 9 . . . . . . . . . . . 66 . 3 50 . . 17 5 . 35 . 4 . Launcher . | . . . . . . . . . . . . . . . . . . . . . . . . . . . . Special 5 | . . . . . . . . . . . . . . . . . 3 2 . . . . . . . . . Kinetic 271 | 5 23 53 3 . . . . . . . . . . . 66 . 3 33 . . 17 5 . 28 . 4 31 Thermal 89 | 5 21 40 6 . . . . . . . . . . . . . . 17 . . . . . . . . . Explosive 5 | . . . . . . . . . . . . . . . . . 3 2 . . . . . . . . . Electromagnetic 52 | . 20 26 . . . . . . . . . . . . . . . . . . . . . . 6 . . Entropic 7 | . . . . . . . . . . . . . . . . . . . . . . . . 7 . . . Robot Hit Streak 26 | 4 6 21 10 . . . . . . . . . . . 7 . 4 26 . . 4 3 . 15 2 3 23 Robot Miss Streak 4 | 2 4 3 1 . . . . . . . . . . . 3 . 3 1 . . 2 2 . 2 1 1 . Penetration Max 1 | . . . . . . . . . . . . . . . 1 . . . . . . . . 1 1 . 1 Secondary Targets 1 | . 1 . . . . . . . . . . . . . . . . . . . . . . . . . . Max Gunslinging Chain 1 | . 1 . . . . . . . . . . . . . . . . . . . . . . . . . . Shots Hit Robots 385 | 6 33 77 6 . 24 1 3 1 1 11 . 32 . . 43 2 15 36 . 4 13 3 6 22 9 13 24 Core Hits 173 | 2 17 30 3 . 10 . 1 . 1 5 . 12 . . 19 1 8 20 . . 8 1 . 13 8 3 11 Critical Kills 34 | . . 1 . . . . . . . . . . . . 9 . 2 9 . . 5 1 . 6 . . 1 Critical Parts Destroyed 41 | . . . . . . . . . . . . . . . 18 . . 6 . . 5 . 1 9 . 2 . Critical Strikes 92 | . 1 3 . . . . . . . . . 3 . . 28 . 5 16 . . 10 1 1 18 . 3 3 Burn 3 | . 1 2 . . . . . . . . . . . . . . . . . . . . . . . . . Destroy 74 | . . 1 . . . . . . . . . . . . 28 . 2 15 . . 9 1 . 15 . 2 1 Smash 2 | . . . . . . . . . . . . . . . . . . . . . 1 . 1 . . . . Sever 7 | . . . . . . . . . . . . 3 . . . . 3 1 . . . . . . . . . Impale 3 | . . . . . . . . . . . . . . . . . . . . . . . . . . 1 2 Sunder 3 | . . . . . . . . . . . . . . . . . . . . . . . . 3 . . . Melee Attacks 465 | . . 22 1 . 103 1 5 1 2 21 . 121 2 13 . 12 31 . 14 5 18 6 16 11 18 31 11 Impact 104 | . . 18 . . . . . . . . . . . . . . . . 14 5 18 6 10 4 11 18 . Slashing 313 | . . 4 1 . 103 1 5 . 2 20 . 119 2 13 . 12 31 . . . . . . . . . . Piercing 44 | . . . . . . . . . . . . . . . . . . . . . . . 6 7 7 13 11 Sneak Attacks 40 | . . . 1 . 5 1 . 1 1 7 . 10 . . . . 3 . . . 1 . 2 . 5 1 2 Combat Hostiles 2 | . . . . . . . . . . . . . . . . . 1 . . . . . . . 1 . . Follow-up Attacks 2 | . . . . . . . . . . . . . . . . . . . . . . . . . . 2 . Damage Inflicted 14527 | 61 483 1440 206 . 1238 90 110 . 77 619 . 1733 . . 856 149 1503 984 . 462 559 70 538 1038 542 736 1033 Guns 1719 | 61 390 480 . . . . . . . . . . . . . . . . . . . . . . 14 . 774 Cannons 3966 | . . 960 129 . . . . . . . . . . . 856 . 42 610 . . 229 70 . 1038 . 32 . Explosions 1234 | . 93 . . . . . . . . . . . . . . . 653 278 . . . . . . 20 190 . Melee 7353 | . . . 77 . 1238 90 110 . 77 619 . 1733 . . . 149 649 . . 462 330 . 538 . 508 514 259 Ramming . | . . . . . . . . . . . . . . . . . . . . . . . . . . . . Kinetic 3670 | 24 123 591 21 . . . . . . . . . . . 856 . 42 455 . . 229 70 . 453 . 32 774 Thermal 1277 | 37 267 632 108 . . . . . . . . . . . . . 58 155 . . . . . . 20 . . Explosive 873 | . . . . . . . . . . . . . . . . . 595 278 . . . . . . . . . Electromagnetic 514 | . 93 217 . . . . . . . . . . . . . . . . . . . . . . 14 190 . Impact 1562 | . . . . . . . . . . . . . . . . . . . . 462 330 . 362 . 339 69 . Slashing 4997 | . . . 77 . 1238 90 110 . 77 619 . 1733 . . . 149 808 96 . . . . . . . . . Piercing 1049 | . . . . . . . . . . . . . . . . . . . . . . . 176 . 169 445 259 Entropic 585 | . . . . . . . . . . . . . . . . . . . . . . . . 585 . . . Highest Corruption 8 | . . . . . 1 1 1 1 1 1 8 8 1 1 1 1 2 7 7 7 7 . . . . 1 3 Average Corruption 2 | . . . . . 1 1 1 1 1 1 3 2 1 1 1 1 1 6 7 7 7 . . . . 1 1 Corruption Purged 18 | . . . . . . . . . . . . 15 . . . . . . . . . . . . . . 3 Corruption Blocked 6 | . . . . . . . . . . . . . . . . . . . . . . . . 1 2 3 . Effects 79 | . . . . . 1 3 5 . . . 1 18 1 2 2 3 6 16 4 3 10 . . . . 1 3 Message Errors 18 | . . . . . . 1 . . . . . 4 . 2 . 1 3 3 . . 2 . . . . 1 1 Matter Fused 23 | . . . . . 1 1 3 . . . 1 3 1 . . . 1 6 2 1 3 . . . . . . Heat Flow Errors 8 | . . . . . . . 1 . . . . 1 . . . . 1 . 1 1 1 . . . . . 2 Energy Discharges 14 | . . . . . . 1 1 . . . . 4 . . 1 1 . 2 1 . 3 . . . . . . Parts Rejected 1 | . . . . . . . . . . . . 1 . . . . . . . . . . . . . . . Data Loss (minor) 8 | . . . . . . . . . . . . 4 . . . . 1 2 . . 1 . . . . . . Data Loss (major) 4 | . . . . . . . . . . . . 1 . . . 1 . 1 . 1 . . . . . . . Misfires 1 | . . . . . . . . . . . . . . . . . . 1 . . . . . . . . . Weapon Failures 2 | . . . . . . . . . . . . . . . 1 . . 1 . . . . . . . . . Overload Shots . | . . . . . . . . . . . . . . . . . . . . . . . . . . . . Overflow Damage 1859 | . . 22 . . 185 50 . . . 71 . 200 . . . . 134 19 . 392 137 . 248 22 169 112 98 Projectiles 63 | . . 22 . . . . . . . . . . . . . . . 19 . . . . . 22 . . . Explosions 21 | . . . . . . . . . . . . . . . . . 18 . . . . . . . . 3 . Melee 1775 | . . . . . 185 50 . . . 71 . 200 . . . . 116 . . 392 137 . 248 . 169 109 98 Knockbacks 17 | . . 3 . . . . . . . . . . . . 2 . . 4 . 1 . . 3 . 2 2 . Impact 6 | . . . . . . . . . . . . . . . . . . . . 1 . . 3 . 2 . . Kinetic 11 | . . 3 . . . . . . . . . . . . 2 . . 4 . . . . . . . 2 . Secondary . | . . . . . . . . . . . . . . . . . . . . . . . . . . . . Self-Inflicted Damage 29 | . . . . . . . . . . . . . . . . . . . . . . . . . 29 . . Shots 1 | . . . . . . . . . . . . . . . . . . . . . . . . . 1 . . Rammed . | . . . . . . . . . . . . . . . . . . . . . . . . . . . . Targets Rammed . | . . . . . . . . . . . . . . . . . . . . . . . . . . . . Kicked . | . . . . . . . . . . . . . . . . . . . . . . . . . . . . Crushed . | . . . . . . . . . . . . . . . . . . . . . . . . . . . . Highest Temperature 324 | 20 80 87 234 . 294 98 142 . 7 . . 324 . . 38 3 230 165 83 89 136 238 4 264 47 . 213 Average Temperature 46 | 15 27 30 102 . 66 47 57 . 4 . . 131 . . 10 3 48 42 8 18 20 89 2 53 7 . 115 Received Heat Transfer 1064 | . . 153 9 . 54 . 24 . 27 . . 125 . . 144 18 105 75 . . . 27 . 96 36 54 117 Effects 3 | . . . . . . . . . . . . . . . . . . . . . . 3 . . . . . Energy Bleed 1 | . . . . . . . . . . . . . . . . . . . . . . 1 . . . . . Interference 2 | . . . . . . . . . . . . . . . . . . . . . . 2 . . . . . Siege Activations . | . . . . . . . . . . . . . . . . . . . . . . . . . . . . Martial Activations . | . . . . . . . . . . . . . . . . . . . . . . . . . . . . Shielding Activations . | . . . . . . . . . . . . . . . . . . . . . . . . . . . . Robots Disrupted 1 | . . . . . . . . . . . . . . . . . . . . . . . . . 1 . . Combat Hostiles . | . . . . . . . . . . . . . . . . . . . . . . . . . . . . Robots Corrupted 10 | . . 1 . . . . . . . . . . . . . . . . . 2 2 . 3 . 2 . . Combat Hostiles 4 | . . 1 . . . . . . . . . . . . . . . . . 2 . . . . 1 . . Parts Fried 25 | . . 3 . . . . . . . . . . . . . . . . . 1 2 . 6 . 4 9 . Impact Corruptions 28 | . . . . . . . . . . . . . . . . . . . . 10 4 . 7 . 7 . . Robots Melted 1 | . . 1 . . . . . . . . . . . . . . . . . . . . . . . . . Combat Hostiles 1 | . . 1 . . . . . . . . . . . . . . . . . . . . . . . . . Parts Melted 4 | . . 4 . . . . . . . . . . . . . . . . . . . . . . . . . Heat Transferred 2322 | 111 742 1036 148 . . . . . . . . . . . . . 50 185 . . . . . . 50 . . Parts Sabotaged . | . . . . . . . . . . . . . . . . . . . . . . . . . . . . Parts Stolen . | . . . . . . . . . . . . . . . . . . . . . . . . . . . . Parts Stripped . | . . . . . . . . . . . . . . . . . . . . . . . . . . . . Power Chain Reactions 3 | . 2 . . . . . . . . . . . . . . . . . . . . . . . 1 . . Alert | -11 -10 -10 -8 -8 -6 -6 -6 -6 -5 -5 -5 -5 -5 -5 -5 -4 -4 -4 -4 -4 -3 -3 -3 -3 -2 -2 -2 ------- Run | Yrd Mat Sub Rec Scr Fac Low Low Dat Pro Fac Was Fac Upp Upp War Pro Fac Upp Upp Zhi Pro Res Tes Gar Res Qua Frg Maximum Alert Level 3 | . . . . . 1 . . . . 1 . 3 . . . . 1 . . . . . . 1 2 1 . Low Security (%) 69 | 100 100 . 100 . 77 . . . . 88 100 26 . . . . 99 . . . . 100 100 37 12 73 100 Level 1 13 | . . . . . 22 . . . . 11 . 8 . . . . . . . . . . . 62 85 26 . Level 2 4 | . . . . . . . . . . . . 17 . . . . . . . . . . . . 2 . . Level 3 12 | . . . . . . . . . . . . 48 . . . . . . . . . . . . . . . Level 4 . | . . . . . . . . . . . . . . . . . . . . . . . . . . . . Level 5 . | . . . . . . . . . . . . . . . . . . . . . . . . . . . . High Security . | . . . . . . . . . . . . . . . . . . . . . . . . . . . . Max Security . | . . . . . . . . . . . . . . . . . . . . . . . . . . . . Peak Influence 1079 | 5 135 . 108 . 310 . . . . 216 71 1079 . . . . 205 . . . . 52 90 355 469 299 109 Initial 263 | . . . 51 . . . . . . . 71 42 . . . . 40 . . . . 43 20 26 199 263 41 Average 223 | . 62 . 33 . 93 . . . . 47 69 634 . . . . 47 . . . . 23 63 199 291 166 62 Influence Increases 7527 | 5 364 315 283 . 941 5 105 . 50 351 . 1759 . . 275 125 544 390 . 10 225 78 115 409 450 341 387 Destroy 0b10 Robot/C 2020 | . 180 120 20 . 20 . 20 . . . . 680 . . 120 . 100 260 . . 100 20 20 180 100 20 60 Destroy 0b10 Robot/NC 325 | 5 15 . 10 . 50 5 . . 5 30 . 70 . . 20 5 20 10 . 10 10 . 10 . 25 15 10 Destroy Leader 312 | . 32 . . . 12 . 10 . . 4 . 148 . . . . 22 30 . . 10 10 2 10 10 2 10 Allied During Kill 96 | . . . . . . . . . . . . 73 . . . . 1 . . . . . . . 18 . 4 Trap Triggered on 0b10 10 | . . . . . . . . . . . . . . . . . . . . . . . . . . 10 . Successful Hack 670 | . 41 . 70 . 193 . . . . 67 . 125 . . . . 52 . . . . . 15 8 24 57 18 Select Force Hacks 270 | . 60 . 180 . . . . . . 30 . . . . . . . . . . . . . . . . . Disable Machine 330 | . . . . . 15 . . . . . . 165 . . . . 60 . . . . . 45 . . 45 . Anti-Garrison Action 200 | . . . . . . . . . . 200 . . . . . . . . . . . . . . . . . Destroy Structure 504 | . 6 . 3 . 66 . . . . 20 . 168 . . . . 64 . . . . 18 8 46 33 42 30 Partial Spotted 510 | . . . . . 180 . . . . . . 105 . . . . 45 . . . . . 15 15 45 45 60 Lose Combat Pursuer 2280 | . 30 195 . . 405 . 75 . 45 . . 225 . . 135 120 180 90 . . 105 30 . 150 195 105 195 Influence Decreases 7451 | 5 320 251 391 . 721 152 178 . 50 148 142 761 473 272 462 187 404 369 104 132 160 107 116 89 336 736 385 Entered New Map 1983 | . . 22 57 . . 82 15 . . . 132 19 393 112 314 127 25 77 44 122 . 22 16 9 156 206 33 Time Decay 4233 | 5 320 209 334 . 512 70 163 . 25 144 10 602 80 160 148 60 247 262 60 10 140 70 90 . 140 160 212 Search Patrol Dispatched 200 | . . . . . 100 . . . . . . . . . . . . . . . . . . . . 100 . Lost Part 576 | . . 20 . . 30 . . . 25 4 . 30 . . . . 112 30 . . 20 15 10 40 20 100 120 Lost Ally 260 | . . . . . 30 . . . . . . 110 . . . . 20 . . . . . . 40 20 20 20 Purge Threat 199 | . . . . . 49 . . . . . . . . . . . . . . . . . . . . 150 . Squads Dispatched 90 | . 3 . . . 28 . . . . 10 . 24 . . . . 10 . . . . . 1 . 4 3 7 Investigation 54 | . 3 . . . 18 . . . . 9 . 10 . . . . 6 . . . . . 1 . 1 1 5 Extermination 17 | . . . . . 5 . . . . 1 . 6 . . . . 2 . . . . . . . 2 1 . Reinforcement 17 | . . . . . 5 . . . . . . 8 . . . . . . . . . . . . 1 1 2 Assault 2 | . . . . . . . . . . . . . . . . . 2 . . . . . . . . . . Garrison . | . . . . . . . . . . . . . . . . . . . . . . . . . . . . Intercept . | . . . . . . . . . . . . . . . . . . . . . . . . . . . . Searches Triggered 2 | . . . . . 1 . . . . . . . . . . . . . . . . . . . . 1 . Unchained Authorized 1 | . . . . . . . . . . . . . . . . . . . . . . . . . . 1 . Data Miner Redirects 7 | . . . . . . . . . . 3 . 2 . . . . 2 . . . . . . . . . . Construction Impeded 1 | . . . . . . . . . . . . 1 . . . . . . . . . . . . . . . Haulers Reinforced 3 | . . . . . . . . . . . . 3 . . . . . . . . . . . . . . . Active Scanning Responses . | . . . . . . . . . . . . . . . . . . . . . . . . . . . . Cargo Convoy Interrupts . | . . . . . . . . . . . . . . . . . . . . . . . . . . . . Stealth | -11 -10 -10 -8 -8 -6 -6 -6 -6 -5 -5 -5 -5 -5 -5 -5 -4 -4 -4 -4 -4 -3 -3 -3 -3 -2 -2 -2 --------- Run | Yrd Mat Sub Rec Scr Fac Low Low Dat Pro Fac Was Fac Upp Upp War Pro Fac Upp Upp Zhi Pro Res Tes Gar Res Qua Frg Distress Signals 15 | . 1 . . . 2 . . . . . . 2 . . . . 2 . . . 1 1 1 . 2 . 3 Communications Jammed . | . . . . . . . . . . . . . . . . . . . . . . . . . . . . Distress Signals . | . . . . . . . . . . . . . . . . . . . . . . . . . . . . Times Spotted 549 | . 21 21 1 . 74 . 10 . 20 6 6 100 1 . 37 6 55 17 . . 16 7 3 22 24 28 74 Peak Tracking Total 17 | . 5 4 1 . 9 . 3 . 13 4 6 10 3 . 7 5 17 5 . . 8 6 4 9 17 11 10 Tactical Retreats 109 | . 2 3 . . 23 . 2 . 4 3 . 22 2 . 6 3 10 4 . . 5 1 . 3 4 3 9 ECM-based Alert Blocks 144 | . . . . . 37 . . . 18 4 . 47 3 . . . 16 . . . . . . . . . 19 Traps | -11 -10 -10 -8 -8 -6 -6 -6 -6 -5 -5 -5 -5 -5 -5 -5 -4 -4 -4 -4 -4 -3 -3 -3 -3 -2 -2 -2 ------- Run | Yrd Mat Sub Rec Scr Fac Low Low Dat Pro Fac Was Fac Upp Upp War Pro Fac Upp Upp Zhi Pro Res Tes Gar Res Qua Frg Traps Triggered 16 | . 2 . . . 4 . . . . 2 . 5 . . . . . . . . . . 1 . . . 2 Indirectly . | . . . . . . . . . . . . . . . . . . . . . . . . . . . . Trap Hack Attempts 25 | . . . . . . . . . . . . 25 . . . . . . . . . . . . . . . Triggered . | . . . . . . . . . . . . . . . . . . . . . . . . . . . . Disarmed . | . . . . . . . . . . . . . . . . . . . . . . . . . . . . Reprogrammed 9 | . . . . . . . . . . . . 2 . . . . . . . . . . . . 6 1 . Reused 1 | . . . . . . . . . . . . . . . . . . . . . . . . . . 1 . Traps Extracted . | . . . . . . . . . . . . . . . . . . . . . . . . . . . . Installed 1 | . . . . . . . . . 1 . . . . . . . . . . . . . . . . . . Triggered 1 | . . . . . . . . . . . . . . . . . . . . . . . . . . 1 . Objects Rigged 1 | . . . . . . . . . . . . . . . . . . . . . . . . . . 1 . Exploded 1 | . . . . . . . . . . . . . . . . . . . . . . . . . . 1 . Machines | -11 -10 -10 -8 -8 -6 -6 -6 -6 -5 -5 -5 -5 -5 -5 -5 -4 -4 -4 -4 -4 -3 -3 -3 -3 -2 -2 -2 ---------- Run | Yrd Mat Sub Rec Scr Fac Low Low Dat Pro Fac Was Fac Upp Upp War Pro Fac Upp Upp Zhi Pro Res Tes Gar Res Qua Frg Machines Disabled 29 | . . 3 . . 1 . . . . . . 11 . . 1 . 4 . . 1 . . 4 . . 3 1 Max in Single Turn 4 | . . 1 . . 1 . . . . . . 1 . . 1 . 4 . . 1 . . 1 . . 2 1 Garrison Access 10 | . . . . . 2 . . . . 1 . 2 . . . . 2 . . . . . . . 2 1 . Machines Repaired . | . . . . . . . . . . . . . . . . . . . . . . . . . . . . Machines Dismantled . | . . . . . . . . . . . . . . . . . . . . . . . . . . . . Machines Sabotaged . | . . . . . . . . . . . . . . . . . . . . . . . . . . . . Overloaded Fab Kills . | . . . . . . . . . . . . . . . . . . . . . . . . . . . . Hacking | -11 -10 -10 -8 -8 -6 -6 -6 -6 -5 -5 -5 -5 -5 -5 -5 -4 -4 -4 -4 -4 -3 -3 -3 -3 -2 -2 -2 --------- Run | Yrd Mat Sub Rec Scr Fac Low Low Dat Pro Fac Was Fac Upp Upp War Pro Fac Upp Upp Zhi Pro Res Tes Gar Res Qua Frg Machines Accessed 180 | . 10 3 12 3 38 . 1 4 . 13 . 30 . 1 5 . 15 . 1 4 2 3 4 1 8 11 11 Terminals 81 | . 8 . 6 . 17 . 1 . . 1 . 14 . . . . 6 . . . 2 3 1 1 5 9 7 Fabricators 11 | . . . . . 3 . . . . 3 . 3 . . . . . . . . . . 1 . . . 1 Repair Stations 9 | . . . . . 2 . . . . 1 . 2 . . . . 3 . . . . . . . . 1 . Recycling Units 34 | . 2 . 6 . 8 . . . . 4 . 7 . . . . 4 . . . . . . . . . 3 Scanalyzers 11 | . . . . . 4 . . . . 3 . 1 . . . . 1 . . . . . 1 . 1 . . Garrison Access 13 | . . . . . 4 . . . . 1 . 3 . . . . 1 . . . . . 1 . 2 1 . Total Hacks 552 | . 29 4 31 12 121 . 4 30 . 34 . 75 . 1 13 . 35 . 1 17 2 9 12 6 22 55 39 Successful 400 | . 16 4 18 12 77 . 4 30 . 26 . 43 . 1 13 . 31 . 1 17 2 4 8 4 19 42 28 Failed 150 | . 12 . 13 . 44 . . . . 8 . 32 . . . . 4 . . . . 5 4 2 2 13 11 Catastrophic 8 | . 1 . 1 . 4 . . . . . . 1 . . . . . . . . . . . . . 1 . Database Lockouts 2 | . 1 . . . . . . . . . . . . . . . . . . . . . . . 1 . . Manual 304 | . 23 . 26 . 70 . . . . 16 . 50 . . 1 . 17 . . . . 8 6 4 15 37 31 Terminals 320 | . 27 . 25 . 80 . 4 . . 5 . 41 . . . . 14 . . . 2 9 3 6 18 53 33 Fabricators 34 | . . . . . 6 . . . . 12 . 11 . . . . . . . . . . 3 . . . 2 Repair Stations 21 | . . . . . 5 . . . . 2 . 3 . . . . 10 . . . . . . . . 1 . Recycling Units 41 | . 2 . 6 . 11 . . . . 4 . 10 . . . . 4 . . . . . . . . . 4 Scanalyzers 36 | . . . . . 13 . . . . 9 . 3 . . . . 6 . . . . . 3 . 2 . . Garrison Access 22 | . . . . . 6 . . . . 2 . 7 . . . . 1 . . . . . 3 . 2 1 . Terminal Hacks 163 | . 5 4 3 12 25 . 4 30 . . . 7 . 1 13 . 2 . 1 17 2 . 1 2 6 19 9 Record 35 | . . 1 . 11 . . 4 11 . . . . . . 2 . . . . 5 1 . . . . . . Part Schematic 21 | . . . . . 2 . . 10 . . . 3 . . . . 1 . . 4 . . . . . 1 . Robot Schematic 6 | . . . . . . . . 6 . . . . . . . . . . . . . . . . . . . Robot Analysis 8 | . 1 . . . 3 . . . . . . . . . . . . . . 4 . . . . . . . Prototype ID Bank 24 | . 1 . 2 . 3 . . 3 . . . . . . 9 . . . . 4 . . . . . 1 1 Open Door 6 | . . 1 . . . . . . . . . . . 1 2 . . . 1 . 1 . . . . . . Level Access Points 1 | . . . . . . . . . . . . . . . . . . . . . . . . . . . 1 Branch Access Points 4 | . . . . . 1 . . . . . . 1 . . . . . . . . . . . . 1 1 . Machine Index 1 | . . . . . . . . . . . . . . . . . . . . . . . . . . 1 . Terminal Index 3 | . 1 . . . . . . . . . . . . . . . . . . . . . . . 1 1 . Recycling Unit Index 1 | . . . . . 1 . . . . . . . . . . . . . . . . . . . . . . Scanalyzer Index 2 | . . . . . 2 . . . . . . . . . . . . . . . . . . . . . . Alert Level 2 | . . . . . 1 . . . . . . . . . . . . . . . . . . . . 1 . Unreport Threat 2 | . . . . . 1 . . . . . . . . . . . . . . . . . . . . 1 . Locate Traps 8 | . . . . . 3 . . . . . . . . . . . . . . . . . . . 2 3 . Reprogram Traps 2 | . . . . . . . . . . . . . . . . . . . . . . . . . 1 1 . Dispatch Records 1 | . . . . . . . . . . . . . . . . . . . . . . . . . . . 1 Security Status 1 | . . . . . . . . . . . . . . . . . . . . . . . . . . . 1 Recall Investigation 3 | . 1 . . . . . . . . . . 2 . . . . . . . . . . . . . . . Recall Extermination 2 | . . . . . . . . . . . . 1 . . . . . . . . . . . . . 1 . Hauler Manifests 3 | . 1 . . . 1 . . . . . . . . . . . . . . . . . . . . 1 . Registered Components 3 | . . . . . 1 . . . . . . . . . . . . . . . . . . . . 1 1 Zone Layout 19 | . . . 1 . 6 . . . . . . . . . . . 1 . . . . . 1 . 1 5 4 Garrison Registry 1 | . . . . . . . . . . . . . . . . . . . . . . . . 1 . . . Patrol Navigation 1 | . . . . . . . . . . . . . . . . . . . . . . . . 1 . . . Proto ID Catalog 2 | . . 1 . 1 . . . . . . . . . . . . . . . . . . . . . . . Release Object 1 | . . 1 . . . . . . . . . . . . . . . . . . . . . . . . . Fabricator Hacks 18 | . . . . . 4 . . . . 6 . 5 . . . . . . . . . . 1 . . . 2 Network Status 3 | . . . . . 1 . . . . 1 . . . . . . . . . . . . 1 . . . . Load Schematic 10 | . . . . . 2 . . . . 4 . 3 . . . . . . . . . . . . . . 1 Build 5 | . . . . . 1 . . . . 1 . 2 . . . . . . . . . . . . . . 1 Repair Station Hacks 16 | . . . . . 4 . . . . 2 . 2 . . . . 8 . . . . . . . . . . Scan Component 8 | . . . . . 2 . . . . 1 . 1 . . . . 4 . . . . . . . . . . Repair 8 | . . . . . 2 . . . . 1 . 1 . . . . 4 . . . . . . . . . . Recycling Unit Hacks . | . . . . . . . . . . . . . . . . . . . . . . . . . . . . Scanalyzer 24 | . . . . . 7 . . . . 7 . 1 . . . . 6 . . . . . 2 . 1 . . Insert Component 8 | . . . . . 3 . . . . 2 . 1 . . . . 2 . . . . . . . . . . Analyze 7 | . . . . . 2 . . . . 2 . . . . . . 3 . . . . . . . . . . Retrieve Study 9 | . . . . . 2 . . . . 3 . . . . . . 1 . . . . . 2 . 1 . . Garrison Access Hacks 9 | . . . . . 2 . . . . . . 2 . . . . 1 . . . . . 1 . 2 1 . Unlock Access 1 | . . . . . . . . . . . . . . . . . . . . . . . 1 . . . . Seal Access 8 | . . . . . 2 . . . . . . 2 . . . . 1 . . . . . . . 2 1 . Unauthorized Hacks 170 | . 11 . 15 . 35 . . . . 11 . 26 . . . . 14 . . . . 4 3 2 10 22 17 Terminals 123 | . 9 . 9 . 24 . . . . 2 . 17 . . . . 9 . . . . 4 2 2 10 21 14 Track 16 | . 2 . 2 . 3 . . . . . . . . . . . . . . . . . . 1 1 4 3 Assimilate 15 | . . . . . 4 . . . . . . 3 . . . . 3 . . . . 1 . . 1 3 . Botnet 27 | . 2 . 2 . 5 . . . . 1 . 4 . . . . 1 . . . . 1 1 1 2 3 4 Detonate 2 | . . . . . . . . . . . . . . . . . . . . . . . . . . 2 . Disrupt 6 | . . . . . 1 . . . . . . . . . . . . . . . . . . . 1 3 1 Operators 1 | . . . . . . . . . . . . . . . . . . . . . . . . . . 1 . Skim 56 | . 5 . 5 . 11 . . . . 1 . 10 . . . . 5 . . . . 2 1 . 5 5 6 Fabricators 7 | . . . . . 2 . . . . 3 . 1 . . . . . . . . . . 1 . . . . Prioritize 2 | . . . . . 1 . . . . 1 . . . . . . . . . . . . . . . . . Recompile 5 | . . . . . 1 . . . . 2 . 1 . . . . . . . . . . 1 . . . . Repair Stations 4 | . . . . . 1 . . . . . . 1 . . . . 1 . . . . . . . . 1 . Patch 4 | . . . . . 1 . . . . . . 1 . . . . 1 . . . . . . . . 1 . Recycling Units 34 | . 2 . 6 . 8 . . . . 4 . 7 . . . . 4 . . . . . . . . . 3 Tunnel 8 | . 2 . 6 . . . . . . . . . . . . . . . . . . . . . . . . Fedlink 25 | . . . . . 8 . . . . 4 . 7 . . . . 4 . . . . . . . . . 2 Scraphulk 1 | . . . . . . . . . . . . . . . . . . . . . . . . . . . 1 Scanalyzers 1 | . . . . . . . . . . 1 . . . . . . . . . . . . . . . . . Extract 1 | . . . . . . . . . . 1 . . . . . . . . . . . . . . . . . Garrison Access 1 | . . . . . . . . . . 1 . . . . . . . . . . . . . . . . . Jam 1 | . . . . . . . . . . 1 . . . . . . . . . . . . . . . . . Data Cores Recovered 4 | . 1 . . . 1 . . . . . . . . . . . . . . . . . . . 1 . 1 Used 1 | . 1 . . . . . . . . . . . . . . . . . . . . . . . . . . Hacking Detections 108 | . 8 . 6 . 27 . 1 . . 7 . 21 . . . . 8 . . . . 3 4 1 5 8 9 Full Trace Events 11 | . . . . . 7 . . . . 1 . 1 . . . . 1 . . . . . . . . . 1 Feedback Events 1 | . . . . . 1 . . . . . . . . . . . . . . . . . . . . . . Corruption 1 | . . . . . 1 . . . . . . . . . . . . . . . . . . . . . . Feedback Blocked . | . . . . . . . . . . . . . . . . . . . . . . . . . . . . Robot Schematics Acquired 7 | . . . . . . . . 6 . . . . . . . . . . . . . . 1 . . . . Robots Built . | . . . . . . . . . . . . . . . . . . . . . . . . . . . . Authchips . | . . . . . . . . . . . . . . . . . . . . . . . . . . . . Time . | . . . . . . . . . . . . . . . . . . . . . . . . . . . . Total Robot Build Rating . | . . . . . . . . . . . . . . . . . . . . . . . . . . . . Part Schematics Acquired 68 | . . . . . 2 . . 10 . 4 . 9 2 1 7 3 8 5 1 5 3 . 4 . 2 2 . Parts Built 6 | . . . . . 2 . . . . 1 . 2 . . . . . . . . . . . . . . 1 Authchips 3 | . . . . . . . . . . 1 . 2 . . . . . . . . . . . . . . . Time 268 | . . . . . 21 . . . . 29 . 168 . . . . . . . . . . . . . . 50 Total Part Build Rating 32 | . . . . . 8 . . . . 7 . 12 . . . . . . . . . . . . . . 5 Part Studies Acquired 9 | . . . . . 2 . . . . 3 . . . . . . 1 . . . . . 2 . 1 . . Parts Repaired 8 | . . . . . 2 . . . . 1 . 1 . . . . 4 . . . . . . . . . . Time 414 | . . . . . 88 . . . . 22 . 50 . . . . 254 . . . . . . . . . . Parts Recycled . | . . . . . . . . . . . . . . . . . . . . . . . . . . . . Recycled Matter . | . . . . . . . . . . . . . . . . . . . . . . . . . . . . Retrieved Matter . | . . . . . . . . . . . . . . . . . . . . . . . . . . . . Retrieved Components . | . . . . . . . . . . . . . . . . . . . . . . . . . . . . Parts Scanalyzed 5 | . . . . . 1 . . . . 2 . . . . . . 2 . . . . . . . . . . Part Schematics Acquired 4 | . . . . . . . . . . 2 . . . . . . 2 . . . . . . . . . . Parts Damaged 3 | . . . . . 1 . . . . 1 . . . . . . 1 . . . . . . . . . . Bothacking | -11 -10 -10 -8 -8 -6 -6 -6 -6 -5 -5 -5 -5 -5 -5 -5 -4 -4 -4 -4 -4 -3 -3 -3 -3 -2 -2 -2 ------------ Run | Yrd Mat Sub Rec Scr Fac Low Low Dat Pro Fac Was Fac Upp Upp War Pro Fac Upp Upp Zhi Pro Res Tes Gar Res Qua Frg Used RIF Installer 1 | . . . . . . . . . . . . . . . . . . . . . . . . 1 . . . Robots Hacked 3 | . . . . . . . . 1 . 1 . 1 . . . . . . . . . . . . . . . Non-combat 1 | . . . . . . . . . . 1 . . . . . . . . . . . . . . . . . Combat 2 | . . . . . . . . 1 . . . 1 . . . . . . . . . . . . . . . Robot Hacks Applied 3 | . . . . . . . . 1 . 1 . 1 . . . . . . . . . . . . . . . parse_system 2 | . . . . . . . . 1 . . . 1 . . . . . . . . . . . . . . . find_chute 1 | . . . . . . . . . . 1 . . . . . . . . . . . . . . . . . Relay Couplers Released 2 | . . . . . . . . . . . . . . . . . 2 . . . . . . . . . . Machine Destruction 2 | . . . . . . . . . . . . . . . . . 2 . . . . . . . . . . Fabnet Peak Effective % . | . . . . . . . . . . . . . . . . . . . . . . . . . . . . Robots Rewired . | . . . . . . . . . . . . . . . . . . . . . . . . . . . . Allies Hacked . | . . . . . . . . . . . . . . . . . . . . . . . . . . . . Hacks Repelled . | . . . . . . . . . . . . . . . . . . . . . . . . . . . . Allies | -11 -10 -10 -8 -8 -6 -6 -6 -6 -5 -5 -5 -5 -5 -5 -5 -4 -4 -4 -4 -4 -3 -3 -3 -3 -2 -2 -2 -------- Run | Yrd Mat Sub Rec Scr Fac Low Low Dat Pro Fac Was Fac Upp Upp War Pro Fac Upp Upp Zhi Pro Res Tes Gar Res Qua Frg Total Allies 19 | . . . . . 4 . . . . . . 3 . . . . 3 . . . . . . 4 1 3 1 Largest Group 2 | . . . . . 1 . . . . . . 1 . . . . 2 . . . . . . 2 2 2 1 Highest-Rated Group 142 | . . . . . 26 . . . . . . 26 . . . . 69 . . . . . . 142 142 90 139 Highest-Rated Ally 139 | . . . . . 26 . . . . . . 26 . . . . 45 . . . . . . 80 80 45 139 Total Orders 36 | . . . . . . . . . . . . 33 . . . . . . . . . . . . . . 3 STAY 2 | . . . . . . . . . . . . . . . . . . . . . . . . . . . 2 FOLLOW 1 | . . . . . . . . . . . . . . . . . . . . . . . . . . . 1 EXPLORE 2 | . . . . . . . . . . . . 2 . . . . . . . . . . . . . . . RETURN 31 | . . . . . . . . . . . . 31 . . . . . . . . . . . . . . . Ally Attacks 218 | . . . . . . . . . . . . 198 . . . . . . . . . . . 2 9 . 9 Total Damage 4976 | . . . . . . . . . . . . 4208 . . . . . . . . . . . 78 188 . 502 Kills 40 | . . . . . . . . . . . . 36 . . . . . . . . . . . . 4 . . Allies Corrupted 1 | . . . . . . . . . . . . 1 . . . . . . . . . . . . . . . Allies Melted 1 | . . . . . . . . . . . . . . . . . . . . . . . . . . . 1 Intel | -11 -10 -10 -8 -8 -6 -6 -6 -6 -5 -5 -5 -5 -5 -5 -5 -4 -4 -4 -4 -4 -3 -3 -3 -3 -2 -2 -2 ------- Run | Yrd Mat Sub Rec Scr Fac Low Low Dat Pro Fac Was Fac Upp Upp War Pro Fac Upp Upp Zhi Pro Res Tes Gar Res Qua Frg Active Infowar (turns) 9260 | . . . . 34 1831 149 470 27 128 369 22 2171 172 320 514 201 449 134 133 97 367 142 182 258 298 333 459 Optics 2137 | . . . . . 1484 . . . . . . . . . . . . . . . . . . . . 194 459 Sensors 8166 | . . . . . 1644 148 470 27 128 369 22 2015 172 320 514 201 449 109 133 83 367 141 180 258 294 122 . Structural 396 | . . . . . . . . . . . . . . . . . . . . . . . . . 166 230 . Traps 55 | . . . . . . . . . . . . . . . 55 . . . . . . . . . . . . Decoding 1850 | . . . . . . . . . . . . . . . . . . . 21 97 367 142 182 258 298 333 152 Machine Analysis 522 | . . . . . . . . . . . . 522 . . . . . . . . . . . . . . . Cloaking 99 | . . . . . . . . . . . . . . . . . . . . . . . . . . 99 . Jamming 131 | . . . . . . . . . . . . . . . . . 106 25 . . . . . . . . . ECM 2555 | . . . . 34 624 107 . . 58 190 . 722 172 320 32 . 238 . . . . . . . . . 58 Robot Analysis Total 8 | . 1 . . . 3 . . . . . . . . . . . . . . 4 . . . . . . . Derelict Logs Recovered 16 | . . 1 . 5 . 2 . . 1 . . . 1 . . 2 . 2 2 . . . . . . . . Drone Launches 51 | . . . . . . . . . . . . 51 . . . . . . . . . . . . . . . Drone Recoveries 46 | . . . . . . . . . . . . 46 . . . . . . . . . . . . . . . Decoded 0b10 Intel 39 | . . . . . . . . . . . . . . . . . . . . . . 5 6 6 9 10 3 Traps 4 | . . . . . . . . . . . . . . . . . . . . . . . 2 . . 1 1 Emergency Access 6 | . . . . . . . . . . . . . . . . . . . . . . 1 . . 2 2 1 Items 26 | . . . . . . . . . . . . . . . . . . . . . . 4 4 5 7 6 . Machines 2 | . . . . . . . . . . . . . . . . . . . . . . . . 1 . . 1 Patrols 1 | . . . . . . . . . . . . . . . . . . . . . . . . . . 1 . Exploration | -11 -10 -10 -8 -8 -6 -6 -6 -6 -5 -5 -5 -5 -5 -5 -5 -4 -4 -4 -4 -4 -3 -3 -3 -3 -2 -2 -2 ------------- Run | Yrd Mat Sub Rec Scr Fac Low Low Dat Pro Fac Was Fac Upp Upp War Pro Fac Upp Upp Zhi Pro Res Tes Gar Res Qua Frg Turns Passed 17202 | 45 793 3655 1036 1694 1970 149 470 27 128 369 22 2195 172 320 514 201 606 567 133 97 367 142 182 258 298 333 459 Spaces Moved 25376 | 43 620 1887 628 1185 3903 505 1076 110 411 687 75 3968 612 683 858 604 1143 1125 409 202 746 446 320 362 770 899 1099 Core 353 | 43 310 . . . . . . . . . . . . . . . . . . . . . . . . . . Treads 1789 | . 310 1479 . . . . . . . . . . . . . . . . . . . . . . . . . Legs . | . . . . . . . . . . . . . . . . . . . . . . . . . . . . Wheels 2016 | . . 408 628 980 . . . . . . . . . . . . . . . . . . . . . . . Hover . | . . . . . . . . . . . . . . . . . . . . . . . . . . . . Flight 21217 | . . . . 205 3903 505 1076 110 411 687 75 3968 612 683 858 604 1143 1125 409 202 746 446 320 362 770 899 1098 Fastest Speed 7 | 50 50 120 139 32 16 19 19 23 23 27 29 27 27 27 26 26 26 20 23 23 17 21 22 7 19 23 16 Average Speed 47 | 50 105 175 157 138 26 25 24 23 25 30 29 29 27 27 26 26 27 27 23 23 23 22 24 20 21 24 26 Slowest Speed 560 | 50 160 560 190 160 32 26 26 23 27 40 34 112 27 27 27 26 105 35 23 23 99 28 28 98 23 30 32 Overloaded Moves 129 | . . . . . 1 2 18 . . . . . . . . . . . . . 10 . . 24 . . 74 Propulsion Burnouts . | . . . . . . . . . . . . . . . . . . . . . . . . . . . . Robots Hopped 166 | . . . . 2 48 . . . 4 2 4 34 . 2 . 1 26 . . . . 5 4 2 7 12 13 Potential Cave-ins . | . . . . . . . . . . . . . . . . . . . . . . . . . . . . Cave-ins Triggered . | . . . . . . . . . . . . . . . . . . . . . . . . . . . . Teleports 4 | . . . . . . . . . . . . . . . . . . . . . . . . . . 2 2 Exploration Rate (%) 63 | 2 96 81 93 84 90 74 88 74 61 25 72 79 85 76 93 80 25 91 52 67 53 13 35 35 24 93 47 Regions Visited 27 Branch Regions 18 Pre-discovered Areas 29 | . 2 . 7 1 6 . 1 1 . . . 4 . . . . 1 1 . 3 . . . . 1 . 1 Known Exits Taken 22 | . 1 1 1 . 1 1 1 1 1 . . 1 1 1 1 1 1 1 1 1 1 1 1 . 1 1 . Unknown Exits Taken 2 | 1 . . . 1 . . . . . . . . . . . . . . . . . . . . . . . Scrap Searched 31 | . . 8 . 2 . 2 2 . 3 . . . 1 . . 3 . 6 2 . 2 . . . . . . Spaces Dug 262 | . . 1 . . 66 . . . 1 10 . 63 2 13 . 10 20 7 14 . 12 6 4 3 9 13 8 Terrain Destroyed 357 | . 5 7 4 . 66 . . . 1 10 . 63 2 13 . 10 37 61 14 . 12 8 4 6 10 13 11 Melee 251 | . . . . . 66 . . . 1 10 . 63 2 13 . 10 20 . 14 . 12 6 4 3 9 13 5 Projectile 34 | . . 7 4 . . . . . . . . . . . . . . 12 . . . 2 . 3 . . 6 AOE 72 | . 5 . . . . . . . . . . . . . . . 17 49 . . . . . . 1 . . Terrain Rammed . | . . . . . . . . . . . . . . . . . . . . . . . . . . . . Walls Destroyed . | . . . . . . . . . . . . . . . . . . . . . . . . . . . . Machines Disabled . | . . . . . . . . . . . . . . . . . . . . . . . . . . . . Actions | -11 -10 -10 -8 -8 -6 -6 -6 -6 -5 -5 -5 -5 -5 -5 -5 -4 -4 -4 -4 -4 -3 -3 -3 -3 -2 -2 -2 --------- Run | Yrd Mat Sub Rec Scr Fac Low Low Dat Pro Fac Was Fac Upp Upp War Pro Fac Upp Upp Zhi Pro Res Tes Gar Res Qua Frg Total 29224 | 55 706 2094 667 1238 4669 520 1280 110 428 823 70 4790 615 796 1077 628 1353 1331 434 245 901 470 399 492 875 958 1200 Wait 2559 | . 18 47 22 13 655 13 197 . 16 101 . 628 2 103 128 14 161 119 6 22 107 7 30 62 54 5 29 Move 25040 | 42 619 1886 627 1181 3810 504 1075 109 403 683 68 3902 611 678 857 601 1093 1124 408 201 745 437 311 358 756 874 1077 Hop 144 | . . . . 1 44 . . . 3 2 2 31 . 2 . 1 23 . . . . 3 4 1 6 12 9 Pick Up 118 | 2 14 22 5 14 11 . 1 . . 2 . 10 . . 6 . 4 4 2 1 . 1 2 7 2 5 3 Fast Attach 140 | 4 2 17 1 1 11 1 . . . 5 . 16 . . 5 . 6 14 1 7 1 3 10 2 10 8 15 Attach 81 | 1 6 3 . 6 5 . . . . 3 . 12 . . 1 . 11 7 . . 6 2 1 5 1 2 9 Detach 42 | 1 3 5 1 . . . . . . 2 . 2 . . . . 6 5 . . 6 1 3 3 . 1 3 Swap 92 | . 4 13 2 2 20 1 1 . 2 . . 12 . . 5 . 6 1 . 2 1 4 . 5 11 . . Drop 156 | . 7 17 5 20 10 . 1 . 1 4 . 20 . . 8 . 6 5 3 7 . 1 7 3 15 5 11 Fire 319 | 5 33 55 3 . . . . . . . . . . . 67 . 6 52 . . 17 5 . 35 6 4 31 Melee 457 | . . 22 1 . 103 1 5 1 2 21 . 121 2 13 . 12 31 . 14 5 18 6 16 11 14 27 11 Ram . | . . . . . . . . . . . . . . . . . . . . . . . . . . . . Kick . | . . . . . . . . . . . . . . . . . . . . . . . . . . . . Crush . | . . . . . . . . . . . . . . . . . . . . . . . . . . . . Escape Stasis 43 | . . . . . . . . . . . . 11 . . . . . . . . . . 15 . . 15 2 Rewire . | . . . . . . . . . . . . . . . . . . . . . . . . . . . . Trap 26 | . . . . . . . . . 1 . . 25 . . . . . . . . . . . . . . . Miscellaneous 7 | . . 7 . . . . . . . . . . . . . . . . . . . . . . . . . Route ------- -11/Scrapyard -10/Materials (discovered 6 exits: *Mat x3 / [*Min x2] / *Sub) -10/Subcaves (discovered 3 exits: *Mat x2 / *Rec) -8/Recycling (discovered 2 exits: *Fac / *Scr) -8/Scraptown (discovered 2 exits: *Fac x2) -6/Factory (discovered 8 exits: *Fac x4 / *Low x2 / *Ext x2) -6/Lower Caves -6/Lower Caves (discovered 2 exits: Fac / *Dat) -6/Data Miner -5/Proximity Caves -5/Factory (discovered 2 exits: Fac / Upp) -5/Waste -5/Factory (discovered 5 exits: *Fac x3 / *Upp x2) -5/Upper Caves -5/Upper Caves (discovered 2 exits: *Fac / *War) -5/Warlord -4/Proximity Caves -4/Factory (discovered 3 exits: *Res x2 / *Upp) -4/Upper Caves -4/Upper Caves -4/Zhirov -3/Proximity Caves -3/Research (discovered 6 exits: *Res x3 / Arm / *Tes x2) -3/Testing -3/Garrison (discovered 3 exits: *Res x3) -2/Research (discovered 2 exits: *Qua x2) -2/Quarantine (discovered 3 exits: *Acc / *Sec / *Frg) -2/Protoforge (discovered 1 exit: Acc) History --------- Turn | Location | Event 17 | -11/Scrapyard | Discovered new exit (range 15) 46 | -11/Scrapyard | Entered Materials 183 | -10/Materials | Discovered new exit (range 16) 218 | -10/Materials | Discovered new exit (range 14) 280 | -10/Materials | Discovered new exit (range 11) 317 | -10/Materials | Build established: Mutant 326 | -10/Materials | Identified exit to Materials 326 | -10/Materials | Central database locked down 380 | -10/Materials | Learned 2 Mines zone layouts 387 | -10/Materials | Discovered new exit (range 16) 393 | -10/Materials | Learned 4 Recycling zone layouts 399 | -10/Materials | Learned Storage emergency access door positions 404 | -10/Materials | Learned location of 2 exits from Subcaves 420 | -10/Materials | Identified exit to Subcaves 447 | -10/Materials | Learned location of 2 exits from Subcaves 839 | -10/Materials | Entered Subcaves 840 | -10/Subcaves | Identified exit to Materials 841 | -10/Subcaves | Shifting Twisted Machinery released Sub. Beam Cannon 841 | -10/Subcaves | Identified exit to Recycling 876 | -10/Subcaves | Learned Materials security intel 1131 | -10/Subcaves | Disturbed a concealed Subdweller 1609 | -10/Subcaves | Visited 4L-MR0's lab 1628 | -10/Subcaves | Found Rainbow Chip 1630 | -10/Subcaves | Attached Rainbow Chip, gained temporary slots: Power, Propulsion, Utility, Weapon 2571 | -10/Subcaves | A swath of the cavern ceiling suddenly collapsed 2907 | -10/Subcaves | Shifting Twisted Machinery released Shrapnel Trap 3244 | -10/Subcaves | Build established: Subdweller-Mutant 3822 | -10/Subcaves | Disturbed a concealed Subdweller 3963 | -10/Subcaves | Core integrity fell below 50% 4179 | -10/Subcaves | Found SUBCON Basin 4442 | -10/Subcaves | Build established: Hauler-Mutant 4494 | -10/Subcaves | Entered Recycling 4495 | -8/Recycling | Identified exit to Scraptown 4793 | -8/Recycling | Discovered new exit (range 14) 4882 | -8/Recycling | Build established: Hauler-Gunner 5189 | -8/Recycling | Learned location of 1 exit from Lower Caves 5222 | -8/Recycling | Learned 2 Lower Caves zone layouts 5266 | -8/Recycling | Learned Factory scanalyzer intel 5480 | -8/Recycling | Scanned before Scraplab entrance 5503 | -8/Recycling | Entered Scraplab 5530 | -8/Recycling | Entered Scraptown 5578 | -8/Scraptown | Visited Cyclists 5601 | -8/Scraptown | Visited Junk Repository 5618 | -8/Scraptown | Visited Spacefarers 5652 | -8/Scraptown | Visited UFD Registry 5652 | -8/Scraptown | Registered with UFD as "Shadowtalker" 5674 | -8/Scraptown | Visited Fellowship of the Rings 5705 | -8/Scraptown | Visited IN-MT5's Study 5743 | -8/Scraptown | Scanned Subdweller tech in exchange for log data 5748 | -8/Scraptown | Learned Research non-interactive machine intel 5750 | -8/Scraptown | Learned Factory terminal intel 5751 | -8/Scraptown | Learned location of 2 exits from Research 5753 | -8/Scraptown | Learned Research trap positions 5770 | -8/Scraptown | Discovered new exit (range 13) 5801 | -8/Scraptown | Guru changed UFD alias to "Microripper" 5852 | -8/Scraptown | Heard Great Nut preacher, LISTEN AND RECITE! 6089 | -8/Scraptown | Build established: Hauler-Mutant 6275 | -8/Scraptown | Entered Cyclist Reading Room 6318 | -8/Scraptown | Visited CR-KLE's Repair Center 6340 | -8/Scraptown | Visited Cave Peace 6449 | -8/Scraptown | Visited Science Guys 6523 | -8/Scraptown | Visited Scrapoid Research Area 6566 | -8/Scraptown | Delivered Scrap Shield to a Scientist 6636 | -8/Scraptown | Visited Curators Association 6677 | -8/Scraptown | Visited Supply Room 6720 | -8/Scraptown | Visited Junk Repository 6774 | -8/Scraptown | Visited Chapter 10 6799 | -8/Scraptown | Visited Derelict Rescue Squad 7165 | -8/Scraptown | CR-KLE repaired 4 parts 7205 | -8/Scraptown | Met Optimus 7205 | -8/Scraptown | Accepted into 0bPrime 7223 | -8/Scraptown | Discovered new exit (range 3) 7224 | -8/Scraptown | Entered Factory 7224 | -6/Factory | Evolved 8 slots: Propulsion x4, Utility x4 7225 | -6/Factory | Identified exit to Extension 7226 | -6/Factory | Loaded intel: 25 terminal locations 7227 | -6/Factory | Loaded intel: 4 scanalyzer locations 7502 | -6/Factory | Fabricated Mic. Nuclear Core (x2) 7532 | -6/Factory | Discovered new exit (range 14) 7532 | -6/Factory | Identified exit to Lower Caves 7556 | -6/Factory | Loaded intel: 8 recycling unit locations 7566 | -6/Factory | Learned 2 Lower Caves zone layouts 7602 | -6/Factory | Learned location of Protoforge (-2) 7632 | -6/Factory | Loaded intel: 6 repair station locations 7650 | -6/Factory | Learned Factory emergency access door positions 7654 | -6/Factory | Build established: Hacker-Scout 7676 | -6/Factory | Learned location of 1 exit from Lower Caves 7739 | -6/Factory | Learned location of Proximity Caves (-6) 7784 | -6/Factory | Discovered new exit (range 21) 7826 | -6/Factory | Repaired Imp. Propulsion Shielding 7877 | -6/Factory | Repaired Adv. Sensor Array 8275 | -6/Factory | Found Prototype Processor 8709 | -6/Factory | Discovered new exit (range 9) 8711 | -6/Factory | Identified exit to Factory 8785 | -6/Factory | Identified Exp. Targeting Computer 8879 | -6/Factory | Discovered exit to Factory (range 8) 8895 | -6/Factory | Spotted B-75 Beast 8974 | -6/Factory | Search patrols dispatched 8992 | -6/Factory | Learned location of 1 exit from Factory 9032 | -6/Factory | Learned location of 1 exit from Proximity Caves 9063 | -6/Factory | Learned location of Upper Caves (-4) 9073 | -6/Factory | Build established: Sprinter 9083 | -6/Factory | Loaded intel: 75 trap records 9094 | -6/Factory | Learned location of 1 exit from Proximity Caves 9098 | -6/Factory | Learned location of 1 exit from Lower Caves 9103 | -6/Factory | Learned 2 Upper Caves zone layouts 9146 | -6/Factory | Learned Extension trap positions 9194 | -6/Factory | Entered Lower Caves 9195 | -6/Lower Caves | Identified exit to Lower Caves 9196 | -6/Lower Caves | UFD Scientist delivered a prototype 9198 | -6/Lower Caves | Spotted B-75 Beast 9205 | -6/Lower Caves | Learned Factory stockpile data 9268 | -6/Lower Caves | Encountered a Warlord checkpoint 9343 | -6/Lower Caves | Entered another Lower Caves area 9345 | -6/Lower Caves | Identified exit to Data Miner 9365 | -6/Lower Caves | Encountered a Warlord checkpoint 9486 | -6/Lower Caves | Attracted the attention of an 0b10 checkpoint 9694 | -6/Lower Caves | Lost 4 allies 9807 | -6/Lower Caves | Learned Extension terminal intel 9807 | -6/Lower Caves | Learned Armory emergency access door positions 9807 | -6/Lower Caves | Learned location of Armory (-3) 9813 | -6/Lower Caves | Entered Data Miner 9813 | -6/Data Miner | Discovered new exit (range 6) 9818 | -6/Data Miner | Met Data Miner 9822 | -6/Data Miner | Learned location of Section 7 (-2) 9822 | -6/Data Miner | Acquired the access code to Warlord's prototype stash 9824 | -6/Data Miner | Received God Mode back door access code from Data Miner 9839 | -6/Data Miner | Identified exit to Proximity Caves 9840 | -6/Data Miner | Entered Proximity Caves 9897 | -5/Proximity Caves | Attracted the attention of an 0b10 checkpoint 9901 | -5/Proximity Caves | Spotted B-75 Beast 9962 | -5/Proximity Caves | Lost 3 parts (1n2u) 9968 | -5/Proximity Caves | Entered Factory 9968 | -5/Factory | Evolved 2 slots: Utility x2 9969 | -5/Factory | Identified exit to Upper Caves 9970 | -5/Factory | Identified exit to Factory 10005 | -5/Factory | Fabricated Field Propulsion Array (x1) 10082 | -5/Factory | Repaired Mic. Nuclear Core+ 10202 | -5/Factory | Incoming investigation squad redirected 10216 | -5/Factory | Lost 3 parts (1p1n1u) 10240 | -5/Factory | Loaded intel: 8 recycling unit locations 10280 | -5/Factory | Incoming investigation squad redirected 10313 | -5/Factory | Incoming investigation squad redirected 10337 | -5/Factory | Sucked down chute 10337 | -5/Factory | Entered Waste 10344 | -5/Waste | Spotted C-40 Crusher 10345 | -5/Waste | Spotted C-40 Crusher 10346 | -5/Waste | Spotted C-40 Crusher 10350 | -5/Waste | Spotted C-40 Crusher 10352 | -5/Waste | EMP discharged 10352 | -5/Waste | Spotted C-40 Crusher 10353 | -5/Waste | Spotted C-40 Crusher 10353 | -5/Waste | Discovered new exit (range 12) 10359 | -5/Waste | Identified exit to Factory 10359 | -5/Waste | Entered Factory 10365 | -5/Factory | Discovered exit to Upper Caves (range 8) 10546 | -5/Factory | Fabricated Combat Drone Bay (x1) 10728 | -5/Factory | Loaded intel: 8 recycling unit locations 10878 | -5/Factory | Repaired Broken Cld. Cesium-ion Thruster? 10960 | -5/Factory | Build established: Ninja 11361 | -5/Factory | Learned location of 1 exit from Armory 11437 | -5/Factory | Loaded intel: 91 trap records 11473 | -5/Factory | Learned Factory trap positions 11495 | -5/Factory | Build established: Hacker-Sprinter 11681 | -5/Factory | Fabricated Combat Drone Bay? 11830 | -5/Factory | Incoming investigation squad redirected 12073 | -5/Factory | Spotted B-75 Beast 12214 | -5/Factory | Tech Extrapolator generated special schematic: Deep Structural Scanner 12283 | -5/Factory | Incoming investigation squad redirected 12387 | -5/Factory | Learned Research fabricator intel 12424 | -5/Factory | Learned Research security intel 12452 | -5/Factory | Learned Extension security intel 12468 | -5/Factory | Learned location of 3 exits from Research 12474 | -5/Factory | Learned location of Proximity Caves (-3) 12475 | -5/Factory | Learned Quarantine stockpile data 12493 | -5/Factory | Learned Extension trap positions 12549 | -5/Factory | Discovered exit to Factory (range 4) 12554 | -5/Factory | Entered Upper Caves 12684 | -5/Upper Caves | Discovered new exit (range 6) 12695 | -5/Upper Caves | Identified exit to Upper Caves 12706 | -5/Upper Caves | Learned Factory terminal intel 12726 | -5/Upper Caves | Entered another Upper Caves area 12762 | -5/Upper Caves | Encountered a Warlord checkpoint 12962 | -5/Upper Caves | Lost 3 allies 12996 | -5/Upper Caves | Discovered new exit (range 6) 13008 | -5/Upper Caves | Identified exit to Warlord 13046 | -5/Upper Caves | Entered Warlord 13055 | -5/Warlord | System corruption cleaned by Quarantine Array 13129 | -5/Warlord | Opened Warlord's prototype stash 13136 | -5/Warlord | Found Prototype Device 13136 | -5/Warlord | Identified System Purifier 13142 | -5/Warlord | Found System Mapper 13147 | -5/Warlord | Found Prototype Reactor 13154 | -5/Warlord | Visited the Vortex Lab 13157 | -5/Warlord | Found Prototype Energy Cannon 13157 | -5/Warlord | Identified Vortex Driver 13170 | -5/Warlord | Found Prototype Special Weapon 13170 | -5/Warlord | Identified RU-N14's Throwing Claymores v3 13172 | -5/Warlord | Found RU-N14's Throwing Claymores v3 13176 | -5/Warlord | Warlord's base attacked by MAIN.C 13197 | -5/Warlord | Rebuked by Warlord 13393 | -5/Warlord | Warlord forces counterattacked 13456 | -5/Warlord | Opened side exit 13463 | -5/Warlord | Discovered new exit (range 14) 13468 | -5/Warlord | Tech Extrapolator generated special schematic: Machine Rigger 13500 | -5/Warlord | Spotted Striker 13516 | -5/Warlord | Destroyed Striker 13527 | -5/Warlord | Spotted Striker 13560 | -5/Warlord | Identified exit to Proximity Caves 13560 | -5/Warlord | Entered Proximity Caves 13591 | -4/Proximity Caves | Lost 24 allies 13613 | -4/Proximity Caves | Learned location of 1 exit from Upper Caves 13621 | -4/Proximity Caves | Spotted B-86 Titan 13734 | -4/Proximity Caves | Learned Research trap positions 13761 | -4/Proximity Caves | Entered Factory 13761 | -4/Factory | Evolved 2 slots: Power x1, Utility x1 13762 | -4/Factory | Identified exit to Research 13762 | -4/Factory | Identified Vortex Chain Reactor 13763 | -4/Factory | Loaded intel: 102 trap records 13764 | -4/Factory | Loaded intel: 26 terminal locations 13792 | -4/Factory | Loaded intel: 8 recycling unit locations 13875 | -4/Factory | Repaired Hyp. Gauss Cannon 13926 | -4/Factory | Repaired Nuclear Pulse Thruster+ 13997 | -4/Factory | Repaired Enh. Nuclear Core 14145 | -4/Factory | Discovered exit to Research (range 16) 14153 | -4/Factory | Discovered new exit (range 8) 14154 | -4/Factory | Identified exit to Upper Caves 14231 | -4/Factory | Incoming investigation squad redirected 14254 | -4/Factory | Repaired Broken Hyp. Gauss Cannon+? 14276 | -4/Factory | Incoming assault squad redirected 14339 | -4/Factory | Core integrity fell below 50% 14367 | -4/Factory | Entered Upper Caves 14368 | -4/Upper Caves | Identified exit to Upper Caves 14370 | -4/Upper Caves | Lost 14 parts (2p6n4u2w) 14824 | -4/Upper Caves | Learned location of Testing (-3) 14824 | -4/Upper Caves | Found DCF Scrap (11 items) 14856 | -4/Upper Caves | Tech Extrapolator generated special schematic: Wartreads 14892 | -4/Upper Caves | Build established: Wizard-Sprinter 14934 | -4/Upper Caves | Entered another Upper Caves area 14938 | -4/Upper Caves | Learned Research interactive machine intel 15061 | -4/Upper Caves | Discovered new exit (range 3) 15061 | -4/Upper Caves | Identified exit to Zhirov 15067 | -4/Upper Caves | Entered Zhirov 15067 | -4/Zhirov | Discovered new exit (range 3) 15077 | -4/Zhirov | Learned location of Command (-1) 15082 | -4/Zhirov | Found Alien Artifact 15082 | -4/Zhirov | Identified Integrated Reactor 15082 | -4/Zhirov | Installed Integrated Reactor, increased core energy generation (+10) 15107 | -4/Zhirov | Found Alien Artifact 15126 | -4/Zhirov | Cloak Generator disabled 15136 | -4/Zhirov | Enhanced Grunts warped into view 15163 | -4/Zhirov | Identified exit to Proximity Caves 15164 | -4/Zhirov | Entered Proximity Caves 15244 | -3/Proximity Caves | Tech Extrapolator generated special schematic: Heat Bomb Trap 15464 | -3/Proximity Caves | Tech Extrapolator generated special schematic: Energy Deflector 15510 | -3/Proximity Caves | Spotted B-86 Titan 15517 | -3/Proximity Caves | Snuck into a huge 0b10 base via the rear entrance 15529 | -3/Proximity Caves | Core integrity fell below 20% 15531 | -3/Proximity Caves | Entered Research 15531 | -3/Research | Evolved 2 slots: Utility x2 15532 | -3/Research | Identified exit to Armory 15533 | -3/Research | Identified exit to Research 15533 | -3/Research | Identified exit to Testing 15534 | -3/Research | Loaded intel: 100 trap records 15536 | -3/Research | Loaded intel: 56 non-interactive machine locations 15537 | -3/Research | Loaded intel: 45 interactive machine locations 15538 | -3/Research | Loaded intel: 3 fabricator locations 15673 | -3/Research | Entered Testing 15682 | -3/Testing | Found Prototype Energy Gun 15682 | -3/Testing | Identified Hyp. EM Gauss Rifle 15703 | -3/Testing | Found Portable AFG 15715 | -3/Testing | Found Prototype Energy Cannon 15715 | -3/Testing | Identified Hpw. Disruptor Cannon 15756 | -3/Testing | Found Prototype Processor 15756 | -3/Testing | Identified Exp. Terrain Scan Processor 15811 | -3/Testing | Identified exit to Garrison 15855 | -3/Testing | Entered Garrison 15907 | -3/Garrison | Discovered exit to Research (range 80) 15907 | -3/Garrison | Discovered exit to Research (range 84) 15907 | -3/Garrison | Discovered exit to Research (range 46) 16045 | -3/Garrison | Rescued a captive Derelict 16046 | -3/Garrison | Rescued a captive Derelict 16054 | -3/Garrison | Spotted B-86 Titan 16067 | -3/Garrison | Found Relay Coupler [Proto] 16070 | -3/Garrison | Found Relay Coupler [Proto] 16072 | -3/Garrison | Found Relay Coupler [Proto] 16074 | -3/Garrison | Found Relay Coupler [Proto] 16081 | -3/Garrison | Spotted B-86 Titan 16081 | -3/Garrison | Triggered checkpoint 16095 | -3/Garrison | Installed Relay Interface Framework 16106 | -3/Garrison | Found embedded Infiltrators 16113 | -3/Garrison | Entered Research 16113 | -2/Research | Accompanied by 2 allies 16113 | -2/Research | Evolved 2 slots: Utility x2 16114 | -2/Research | Loaded intel: 94 trap records 16259 | -2/Research | Central database locked down 16283 | -2/Research | P-80 Master assimilated allied Administrator 9a 16338 | -2/Research | Spotted B-90 Cyclops 16343 | -2/Research | Identified exit to Quarantine 16393 | -2/Research | Spotted B-90 Cyclops 16407 | -2/Research | Spotted B-90 Cyclops 16411 | -2/Research | Entered Quarantine 16479 | -2/Quarantine | Unchained authorized (6S-H0T) 16567 | -2/Quarantine | Found Alien Artifact 16568 | -2/Quarantine | Identified Subatomic Replicator 16568 | -2/Quarantine | Used Subatomic Replicator to create Alien Artifact 16585 | -2/Quarantine | Identified exit to Access 16629 | -2/Quarantine | Found Alien Artifact 16629 | -2/Quarantine | Identified Transdimensional Reconstructor 16629 | -2/Quarantine | Warped through subspace 16638 | -2/Quarantine | Found Alien Artifact 16639 | -2/Quarantine | Found Alien Artifact 16639 | -2/Quarantine | Identified Dimensional Node Initializer (x2) 16639 | -2/Quarantine | Initialized slip node 16647 | -2/Quarantine | Core integrity fell below 50% 16647 | -2/Quarantine | Scanned by Researcher 16656 | -2/Quarantine | Identified exit to Section 7 16661 | -2/Quarantine | Search patrols dispatched 16672 | -2/Quarantine | Found Transdimensional Reconstructor 16672 | -2/Quarantine | Warped through subspace 16685 | -2/Quarantine | Lost 7 parts (1p2n2u2w) 16717 | -2/Quarantine | Learned Access emergency access door positions 16724 | -2/Quarantine | Spotted Fortress 16725 | -2/Quarantine | Tech Extrapolator generated special schematic: Telecube 16743 | -2/Quarantine | Discovered new exit (range 6) 16744 | -2/Quarantine | Identified exit to Protoforge 16744 | -2/Quarantine | Entered Protoforge 16784 | -2/Protoforge | Superfortress began startup sequence 16802 | -2/Protoforge | Spotted Hotshot 16804 | -2/Protoforge | Spotted Hotshot 16822 | -2/Protoforge | Spotted AP7-3 16822 | -2/Protoforge | Spotted AP7-3 16835 | -2/Protoforge | Spotted EXE-6 16835 | -2/Protoforge | Spotted EXE-6 16837 | -2/Protoforge | Spotted Overlord 16838 | -2/Protoforge | Spotted Decapitator 16839 | -2/Protoforge | Spotted Decapitator 16850 | -2/Protoforge | UFD initiated attack on Protoforge (Readiness: Maximal) 16850 | -2/Protoforge | Loaded intel: 3 recycling unit locations 16858 | -2/Protoforge | Core integrity fell below 20% 16858 | -2/Protoforge | Spotted EXE-6 16858 | -2/Protoforge | Spotted EXE-6 16870 | -2/Protoforge | Scraphulk reinforcements arrived? 16885 | -2/Protoforge | Found Prototype Processor 16885 | -2/Protoforge | Identified Exp. Core Analyzer 16887 | -2/Protoforge | Optimus greeted in Protoforge 16888 | -2/Protoforge | Found Prototype Processor 16888 | -2/Protoforge | Identified Exp. Armor Integrity Analyzer 16890 | -2/Protoforge | Found Prototype Ballistic Gun 16890 | -2/Protoforge | Identified Cep. XC Strikerail 16893 | -2/Protoforge | Learned location of 1 exit from Research 16893 | -2/Protoforge | Found Cep. XC Strikerail 16897 | -2/Protoforge | Found Prototype Device 16897 | -2/Protoforge | Identified Exp. Kinecellerator 16908 | -2/Protoforge | Found Prototype Device 16908 | -2/Protoforge | Identified Exp. ECM Suite 16931 | -2/Protoforge | Forge Plexus network access discovered 16965 | -2/Protoforge | Lost 7 allies 16978 | -2/Protoforge | Initialized slip node 16997 | -2/Protoforge | Fabricated Telecube? 17005 | -2/Protoforge | Learned location of 1 exit from Research 17015 | -2/Protoforge | Identified Supercharged TR 17015 | -2/Protoforge | Warped through subspace to slip node 17022 | -2/Protoforge | Spotted Decapitator 17035 | -2/Protoforge | Spotted Striker 17046 | -2/Protoforge | Learned location of 1 exit from Research 17064 | -2/Protoforge | Spotted Immortal 17066 | -2/Protoforge | Spotted Striker 17067 | -2/Protoforge | Lost 5 parts (1n4u) 17082 | -2/Protoforge | Spotted Decapitator 17082 | -2/Protoforge | Spotted Striker 17089 | -2/Protoforge | Destroyed Decapitator 17092 | -2/Protoforge | Learned Research trap positions 17096 | -2/Protoforge | Triborg destroyed during the operation 17096 | -2/Protoforge | Optimus emerged from Triborg 17113 | -2/Protoforge | Spotted Executioner 17113 | -2/Protoforge | Spotted Striker 17117 | -2/Protoforge | Learned 4 Research zone layouts 17127 | -2/Protoforge | Lost 19 allies 17153 | -2/Protoforge | Learned 8 Access zone layouts 17159 | -2/Protoforge | Spotted Hotshot 17159 | -2/Protoforge | Spotted Hotshot 17179 | -2/Protoforge | Spotted Hotshot 17179 | -2/Protoforge | Spotted Hotshot 17183 | -2/Protoforge | Lost 3 parts (1n1u1w) 17184 | -2/Protoforge | Discovered exit to Access (range 17) 17200 | -2/Protoforge | Spotted Striker 17200 | -2/Protoforge | Spotted Hotshot 17200 | -2/Protoforge | Spotted Striker 17203 | -2/Protoforge | Destroyed by Hotshot with Precision Phase Gun Last Messages --------------- >>Trojan(Track) Trojan loaded successfully. Testing... Tracking enabled and active. >>Access(Main) Found 1 level access point to Access: (28,142) Map updated. 17186_ Slug penetrates Wall. 17188_ System corrupted: Heat flow error (+280). 17195_ 0bP_NET: Lugger 057 inbound, all units not involved in other operations escort to target. 17197_ 0bP_NET: Lugger 900 inbound, all units not involved in other operations escort to target. 17200_ Cep. XC Strikerail destroyed. 17200_ Exp. ECM Suite destroyed. 17200_ Knocked back. 17201_ Acquired 6 matter. Map ----- +----------------------------------------------------+ | ???????####????????##?????????????????????????##?? | | ???????####????????##????????????###############?? | | ???????##############????????????###############?? | | ???????############################????#???????#?? | | ???????############################????#???????#?? | | ???????????????????????????????????????#?????????? | | ??????????????????????###########?#????#???????#?? | | ??????????????????????###????####?#????#???????#?? | | ##?????#############?####????####?#????#########?? | | ?#????#########?????????#????####?#????#########?? | | ?#????###????##?????????#????####?#????##??????#?? | | ?#????##?????##?????????#?????????#????##??????#?? | | ?#????##?????##?????????#????#?##########????????? | | ?#????##?????##?????????#????#?????????##??????#?? | | ##????##?????##?????????#????#?????????##??????#?? | | #?????##?????##?????????#????#?????????##??????#?? | | #?????##?????##?????????####?#?????????#########?? | | #?????##?????######?############################?? | | #?????##?????###????????????? ###########?????##?? | | #?????##??????## ##??????????????##?? | | #?#???##??????## < ##??????????????##?? | | ??#???##??????## ##??????????????##?? | | ??#???##??????##;######### ##??????????????##?? | | ??#???########## K # #########???????##?? | | ??#???########## K" " " # #########???????##?? | | ??#???#?? ### " "" g@ ###########?? | | ??#???#?? # + """ ; ###########?? | | ?##???#??""" ### " " # g ?????? | | ?????????""" ### " "" # g ???? | | ??????#??""" ### """ ### T ???? | | ??????#?? ? # ### ????? | | ??????#############;######## """"""" """"""????? | | ??????#############g # """"""" ""????????? | | ??????############# """ # """"""" "?????????? | | ??????############# g "T" # ?????????? | | ####??### #### " " # ?????????? | | ####????# #### # ################### | | ??#####?# #### """ # ################### | | #######?# " "" #### """ # ##????????????????? | | #######?? "R"" ? # """ # ##????????????????? | | "S""" #?# """" #### # ################### | | " """ #?################+### ################### | | # | | " """ + | | " """ # """"""" | | " """ ### ############ """"""" ########## | | ###+############ """"""" ##??????## | | ??### # ##??????## | | #+####### # ##??????## | | # ####??? + #???????#? | +----------------------------------------------------+ Best States ------------- Heat Dissipation 56 Coolant Potential 120 Energy Generation 47 Energy Capacity 500 Matter Stores 300 Matter Capacity 300 Sight Range 22 Robot Scan Range 19 Terrain Scan Density 10 ECM Strength 3 Jamming Range 16 Cloak Strength 4 Corruption Block 20 Armor Coverage 800 Core Shielding 20 Propulsion Shielding 66 Weapon Shielding 90 Evasion (%) 80 Armor Integrity Analysis 50 Recoil Reduction 2 Offensive Hacking 54 Defensive Hacking 30 Authchip Count 1 Item Schematics ----------------- Mic. Nuclear Core | -6/Factory | Hacked Field Propulsion Array | -6/Factory | Hacked Combat Drone Bay | -6/Data Miner | Free Lgt. Regenerative Plating | -6/Data Miner | Free Enh. Flexi-carbon Leg | -6/Data Miner | Free Prc. Matter Filter | -6/Data Miner | Free Enh. Coil Gun | -6/Data Miner | Free Adv. VSS Leg | -6/Data Miner | Free Imp. Cloaking Device | -6/Data Miner | Free Hardcell Cannon | -6/Data Miner | Free Field Propulsion Drive | -6/Data Miner | Free Lrn. Terrain Scanner | -6/Data Miner | Free Imp. System Restoration Module | -5/Factory | Scanalyzed Nuclear Pulse Thruster | -5/Factory | Scanalyzed Hvy. Machine Gun | -5/Factory | Extracted Arm. Medium Treads | -5/Factory | Extracted Adv. Point Defense System | -5/Factory | Hacked Mak. Power Source | -5/Factory | Extrapolated Deep Structural Scanner | -5/Factory | Extrapolated Adv. Hacking Suite | -5/Factory | Hacked 0b10 Decoder Chip [Skirmisher] | -5/Factory | Extrapolated Adv. Trap Extractor | -5/Factory | Hacked Tactical Coordination Suite | -5/Factory | Extrapolated Mak. Hacking Suite | -5/Factory | Extrapolated Mak. Coolant Network | -5/Factory | Extrapolated 0b10 Decoder Chip [Generic] | -5/Upper Caves | Extrapolated 0b10 Decoder Chip [Scout] | -5/Upper Caves | Extrapolated Mak. System Shield | -5/Upper Caves | Extrapolated Mak. Thermal Plating | -5/Warlord | Extrapolated Mak. Targeting Computer | -5/Warlord | Extrapolated Mak. Heavy Armor Plating | -5/Warlord | Extrapolated Mak. Light Armor Plating | -5/Warlord | Extrapolated Mak. System Restoration Module | -5/Warlord | Extrapolated Machine Rigger | -5/Warlord | Extrapolated Mak. Medium Armor Plating | -5/Warlord | Extrapolated Mak. Ablative Armor | -4/Proximity Caves | Extrapolated Mak. Laser | -4/Proximity Caves | Extrapolated Hvy. Beamcaster | -4/Proximity Caves | Extrapolated Hvy. Battle Rifle | -4/Factory | Extrapolated Mak. Transmission Jammer | -4/Factory | Extrapolated Multitool | -4/Factory | Extrapolated Mak. Hammer | -4/Factory | Extrapolated Vortex Chain Reactor | -4/Factory | Scanalyzed Hyp. Gauss Cannon | -4/Factory | Scanalyzed Imp. Armor Integrity Analyzer | -4/Factory | Hacked Mak. Kinetic Plating | -4/Factory | Extrapolated Mak. Flight Unit | -4/Upper Caves | Extrapolated Mak. Trap Scanner | -4/Upper Caves | Extrapolated Mak. Propulsion Shielding | -4/Upper Caves | Extrapolated Wartreads | -4/Upper Caves | Extrapolated Lgt. Humpback | -4/Upper Caves | Extrapolated Mak. Salvage Targeting Computer | -4/Upper Caves | Extrapolated Assault Drone Bay | -4/Zhirov | Free Exp. Heat Sink | -4/Zhirov | Free Exp. Optical Array | -4/Zhirov | Free Imp. Arc Thrower | -4/Zhirov | Free Plasma Flamer | -4/Zhirov | Extrapolated Mak. Weapon Shielding | -3/Proximity Caves | Extrapolated Heat Bomb Trap | -3/Proximity Caves | Extrapolated Energy Deflector | -3/Proximity Caves | Extrapolated Adv. Gravity Neutralizer | -3/Testing | Archive Exp. Field Recycling Unit | -3/Testing | Archive Mak. ECM Suite | -3/Testing | Extrapolated Mak. Terrain Scan Processor | -3/Testing | Extrapolated Mak. Core Shielding | -2/Research | Extrapolated Bore Cannon | -2/Research | Extrapolated Adv. Cloaking Device | -2/Quarantine | Hacked Telecube | -2/Quarantine | Extrapolated Robot Schematics ------------------ G-50 Soldier | -6/Data Miner | Free I-36 Angel | -6/Data Miner | Free B-48 Gladiator | -6/Data Miner | Free B-60 Warrior | -6/Data Miner | Free M-36 Artificer | -6/Data Miner | Free E-15 Imp | -6/Data Miner | Free G-67 Veteran | -3/Testing | Archive Fabricated ------------ Mic. Nuclear Core | x2 | -6/Factory Field Propulsion Array | x1 | -5/Factory | Authchip Combat Drone Bay | x1 | -5/Factory | Authchip Combat Drone Bay | x1 | -5/Factory | Authchip Telecube | x1 | -2/Protoforge Repaired ---------- Imp. Propulsion Shielding | 27% | -6/Factory Adv. Sensor Array | 33% | -6/Factory Mic. Nuclear Core | 8% | -5/Factory Cld. Cesium-ion Thruster | 82% | -5/Factory | Broken Hyp. Gauss Cannon | 25% | -4/Factory Nuclear Pulse Thruster | 16% | -4/Factory Enh. Nuclear Core | 33% | -4/Factory Hyp. Gauss Cannon | 99% | -4/Factory | Broken Studied --------- Nuclear Pulse Thruster | -6/Factory | Hacked Mic. Nuclear Core | -6/Factory | Hacked Field Propulsion Array | -5/Factory | Hacked Lgt. Ion Engine | -5/Factory | Hacked Nuclear Pulse Array | -5/Factory | Hacked Hyp. Gauss Cannon | -4/Factory | Hacked Hyp. Mass Driver | -3/Testing | Hacked Q-thruster | -3/Testing | Hacked Xenon Bombardment Thruster | -2/Research | Hacked Alien Tech Used ----------------- Integrated Reactor Subatomic Replicator Transdimensional Reconstructor Dimensional Node Initializer Supercharged TR Achievements -------------- None Challenges ------------ None Game ------ Seed AdvancedWardroneSplitter Manual? 0 Play Time 05:01:26 Cumulative 819.0 hours Start 2025.12.21 @ 21:40:44 End 2025.12.22 @ 18:57:07 Sessions 5 Manual Loads 0 Difficulty Rogue Special Mode None Game No. 332 Rogue 332 Adventurer 0 Explorer 0 Win Type - Total 85 Types 43/6/15/6/6/1/1/3/0/4 Lore% 97 Gallery% 91 Achievement% 84 Wizard Run 0 Options --------- Layout 1 ASCII 0 Keyboard 0 Movement Numpad Keybinds 0 Fullscreen 1 Font 24/Smallcaps Map View 50x35 Zoom Use 0% Tactical HUD 1 Map Filters NONE Filters NONE Steam 1 RUN: 1f9f6f3e-7f89-42df-bfcb-3df8a89d74b6